Workbook

Sheet Welcome
H20: Click on the circles to navigate

Sheet Sector Info
A1: Climate Change Vulnerabilities | O1: Mauritius in Figures
B3: The protection, sustainability, and enhancement of freshwater quality and its availability is basis of for long-term socio-economic development. | O3: Area: 1865 km2 Population: 1.3 Million – Pop. density 657 person/ sq km Literacy rate: 90% GDP/Capita: $ 8743
B6: The sustainable use of the country’s water resources is threatened due to the combined effects of increased demand, climate change impacts such as reduced precipitation and increasing evapotranspiration, contamination and other factors (UNEP, 2014). | O6: Level of coverage for water supply: 99% Level of coverage for Sanitation: ~26%
O8: Land coverage | P8: % | R8: Season | S8: Temperature | T8: Rainfall
B9: Already in 2010 water availability was equivalent to 965m3 /person, which is below the threshold for classifying a as water-scarce (GoM, 2012). | O9: Agriculture | P9: 43 | R9: warm humid summer (Nov-Apr) | S9: 22-29⁰C | T9: 1300
O10: Built-up Areas | P10: 25 | R10: Cool dry winter (May-Oct) | S10: 18-23⁰C | T10: 700
O11: Public Roads | P11: 2
A12: Climate change-related impacts observed in the water sector in Mauritius | O12: Abandoned canefields, forests, scrub land, grasslands and grazing lands, reservoirs and ponds, swamps and rocks | P12: 30
B14: A decreasing trend in annual precipitation of about 8% when comparing 1951-1960 and 1998- 2008 figures
B17: An increase in rainfall variability with heavy rainfall events on the rise
O19: Source: http://publicutilities.govmu.org/English//DOCUMENTS/OVERVIEW_WATER_SECTOR_MAURITIUS.PDF
B20: The duration of the transitional dry months between winter and summer is becoming longer. This shift in the onset of summer rain translates into increasing pressure on the water sector to enhance storage capacity in order to cater for longer periods of dry spells and to meet equally growing demands of the agricultural, tourism, industrial and residential sectors the Central Plateau, with the largest catchments in the common recharge zones, has seen a significant decrease in water level which is reflected in changes in ground water and river-flow regimes.
A24: Usable water resources projections
B26: Projections indicate that the utilisable water resources may decrease by up to 13% by 2050, if no action is taken to restore catchment areas. This trend in the reduction of surface and groundwater recharge may be explained by a reduction in the longer term trend in precipitation. Analysis carried out in the context of the Mauritius Environment Outlook 2011 shows that the total water demand is projected to reach 1 200 million m^3 per year by 2040 based solely on changes in population dynamics. This demand, which does not take into account water demand from other growing sectors of the economy, is in excess of projected supplies and close to the present utilisable renewable potential of 1 233 million m^3 per year (GoM, 2012).
A34: Reference: Third National Communication for RoM
A37: Potential Climate Change impacts in Water Sector
B39: Higher evaporation rates resulting in decreased quality of drinking water
B40: Periods of drought resulting in water quality due to increased effluent and salt concentrations
B41: Increased rainfall intensities, flash floods and regional flooding due to rainfall variability, resulting in litter and debris blocking water and sanitation systems thus exacerbating these challenges which will have a direct impact environmental and human health.
B43: Decreased water availability due to rainfall variability and increaded periods of drought.
B44: Reduced oxgygen concentrations and higher water temperatures may impact on aquatic species.

Sheet EVI Info
A1: CCEVI Indicators – Mapping Vulnerability
A3: Measuring Climate Change and Environmental Vulnerability (CCEV) is a complicate task which includes measures for different levels of a sector from species to interdependent ecosystems and complex relationships between them. An indicator approach is used to help in the simplification of the complexity. Indicators are used to simplify models and to avoid use of substantial.
A7: The CCEVI uses general indicators, as far as possible, as measures of various aspects of climate change and environmental vulnerability which can be quantitative or qualitative based on different scales (linear, non-linear, or with different ranges) and unit measurements. The CCEVI maps all the indicators onto a common environmental vulnerability scale in order to get an average index for the sector.
A15: The CCEVI scale is a relative scale of vulnerability ranging from 1 – least vulnerable (most resilient) to 7 – most vulnerable (least resilient).
B19: Increasing Resilience | H19: Least resilient
B20: 1 | C20: 2 | D20: 3 | E20: 4 | F20: 5 | G20: 6 | H20: 7
B22: Least Vulnerable | H22: Increasing Vulnerability
A27: The data needed encompasses a range of climate change and environmental factors from:
A28: 1 | B28: Meteorological data,
A29: 2 | B29: Sea surface temperature,
A30: 3 | B30: Geological and geographical information,
A31: 4 | B31: Biological species and habitat data,
A32: 5 | B32: Reserves,
A33: 6 | B33: Human activities such as fishing, mining, pollution, population, legislation etc.
A36: CCEVI Calculation
A37: 1 | B37: EVI requires compilation of relevant environmental vulnerability data for some 50 indicators in general
A38: 2 | B38: We map each indicator using the compiled data onto a 1-7 vulnerability scale
A39: 3 | B39: If data is not available, no value is given for the indicator which is not used in the averaging process.
A40: 4 | B40: If indicator is considered not applicable, the lowest vulnerability score of 1 is allocated (e.g. volcanoes)
A41: 5 | B41: The vulnerability scores for each indicator are lumped either into categories or sub-indices and the average calculated.
A42: 6 | B42: Sector or country EVI is calculated using an overall average.
A43: 7 | B43: Graphical Representations of the EVIs
A46: The CCEVI is accumulated into three sub-indices:
A47: 1 | B47: Hazards
A48: 2 | B48: Resistance
A49: 3 | B49: Damage
A52: The initial standard 50 CCEVI indicators are also divided up in the issue categories for use as required:
A53: 1 | B53: Water
A54: 2 | B54: Health
A55: 3 | B55: Infrastructure
A56: 4 | B56: Agriculture
A57: 5 | B57: Biodiversity
A58: 6 | B58: Fisheries
A59: 7 | B59: Coastal zone
A60: Reference Source:
A61: Pratt, C.R., Kaly, U.L., and Mitchell, J. 2004. Manual: How to Use the Environmental Vulnerability Index (EVI). SOPAC Technical Report 383, 60 pp; 1 appendix, 2 figures. United Nations Environment Programme (UNEP). South Pacific Applied Geoscience Commission (SOPAC).

Sheet Data entry

Sheet SectorData
B1: Water Sector Report | H1: Vulnerability Rating Scale | J1: Vulnerability Equivalence to combination of Sensitivity and Adaptivity | R1: Sector EVI Summary
A2: Score and Classification | B2: Default EVI Score | C2: User EVI Score | D2: User EVI Estimate | E2: Number of Indicators | H2: Legend for Classification | J2: Sensitivity | K2: Adaptive | R2: Indicator Names | S2: Default EVI | T2: User Defined EVI | U2: User EVI Estimate
A3: EVI Score | B3: 341.6666667 | C3: 345.8333333 | D3: 345.8333333 | E3: 24 | H3: Extremely vulnerable | I3: 365+ | J3: High | K3: Low | R3: High Winds | S3: 1 | T3: 3 | U3: 6
A4: Vulnerability Classification | B4: Highly vulnerable | C4: Highly vulnerable | D4: Highly vulnerable | H4: Highly vulnerable | I4: 315+ | J4: High(Medium) | K4: Medium(Low) | R4: Dry Periods | S4: 7 | T4: 7 | U4: 7
H5: Vulnerable | I5: 265+ | J5: High(Medium) | K5: High(Medium) | R5: Wet Periods | S5: 2 | T5: 2 | U5: 2
H6: At risk | I6: 215+ | J6: Medium(Low)(Low) | K6: High(Medium)(Low) | R6: Hot Periods | S6: 1 | T6: 1 | U6: 1
A7: Category (Indicator Types) | B7: Default EVI Score | C7: User EVI Score | D7: User EVI Estimate | E7: Number of Parameters | H7: Resilient | I7: <215 | J7: Low | K7: High | R7: Cold Periods | S7: 1 | T7: 1 | U7: 1
A8: Weather & Climate | B8: 3.166666667 | C8: 3.333333333 | D8: 3.333333333 | E8: 6 | R8: Volcano | S8: 1 | T8: 1 | U8: 1
A9: Geology | B9: 1.25 | C9: 1.25 | D9: 1.25 | E9: 4 | R9: Earthquake | S9: 1 | T9: 1 | U9: 1
A10: Geography | B10: 4.666666667 | C10: 4.666666667 | D10: 4.666666667 | E10: 6 | R10: Tsunamis | S10: 2 | T10: 2 | U10: 2
A11: Resources & services | B11: 4.333333333 | C11: 4.37037037 | D11: 4.481481481 | E11: 27 | R11: Terrestrial Reserves (%) | S11: 7 | T11: 7 | U11: 7
A12: Human Populations | B12: 4 | C12: 4 | D12: 4 | E12: 6 | R12: Fertilisers | S12: 4 | T12: 4 | U12: 4
D13: Total | E13: =SUM(E8:E12) -> 49 | R13: Pesticides | S13: 1 | T13: 1 | U13: 1
R14: Renewable Water | S14: 1 | T14: 1 | U14: 1
A15: ASPECTS OF VULNERABILITY | B15: Default EVI Score | C15: User EVI Score | D15: User EVI Estimate | E15: Number of Parameters | R15: Sulphur Dioxide Emissions | S15: 6 | T15: 6 | U15: 6
A16: Hazards | B16: 3.424242424 | C16: 3.454545455 | D16: 3.545454545 | E16: 33 | R16: Waste Production | S16: 1 | T16: 1 | U16: 1
A17: Resistance | B17: 4.625 | C17: 4.75 | D17: 4.75 | E17: 8 | R17: Waste Treatment | S17: 7 | T17: 7 | U17: 7
A18: Damage | B18: 5 | C18: 5 | D18: 5 | E18: 10 | R18: Industry | S18: 3 | T18: 3 | U18: 3
R19: Sanitation | S19: 5 | T19: 5 | U19: 5
R20: Population | S20: 6 | T20: 6 | U20: 6
A21: SECTOR POLICY-RELEVANT Indices | B21: Default EVI Score | C21: User EVI Score | D21: User EVI Estimate | E21: Number of Parameters | R21: Population Growth | S21: 4 | T21: 4 | U21: 4
A22: Water | B22: 3.416666667 | C22: 3.458333333 | D22: 3.458333333 | E22: 24 | R22: Tourists | S22: 5 | T22: 5 | U22: 5
A23: Health | B23: 3.5 | C23: 3.45 | D23: 3.3 | E23: 20 | R23: Coastal Settlements | S23: 7 | T23: 7 | U23: 7
A24: Coastal Zone | B24: 3.583333333 | C24: 3.583333333 | D24: 3.708333333 | E24: 24 | R24: Environmental Agreements | S24: 1 | T24: 1 | U24: 1
A25: Infrastructure | B25: 3.833333333 | C25: 3.8 | D25: 3.7 | E25: 30 | R25: Conflicts | S25: 1 | T25: 1 | U25: 1
A26: Agriculture | B26: 3.409090909 | C26: 3.363636364 | D26: 3.227272727 | E26: 22 | R26: RainClemencia | S26: 7 | T26: 6 | U26: 3
A27: Biodiversity | B27: 3.789473684 | C27: 3.789473684 | D27: 3.789473684 | E27: 38
A28: Fisheries | B28: 3.5 | C28: 3.541666667 | D28: 3.666666667 | E28: 24
B34: Vulnerability Rating Scale
C35: Sensitivity
B36: Adaptive capacity | C36: Low | D36: Medium | E36: High
B37: High | C37: Resilient | D37: At Risk | E37: Vulnerable
B38: Medium | C38: At Risk | D38: Vulnerable | E38: Highly Vulnerable | G38: Vulnerability Matrix
B39: Low | C39: At Risk | D39: High Vulnerable | E39: Extremely Vulnerable

Sheet Risk
A1: Risk Rating Scale | H1: Sector Risk | K1: Indicator Names | L1: Consequence (Default) | M1: Consequence (User) | N1: Consequence (Estimate) | O1: Likelihood | P1: Risk (Default) | Q1: Risk (User) | R1: Risk (Estimate)
B2: Consequences | H2: Vulnerability Class | I2: 3.444444444 | K2: High Winds | L2: Insignificant | M2: Moderate | N2: Catastrophic | O2: Possible | P2: Low | Q2: Medium | R2: High
A3: Probability | B3: Insignificant | C3: Minor | D3: Moderate | E3: Major | F3: Catastrophic | H3: Consequence | I3: Moderate | J3: Select Likelihood below | K3: Dry Periods | L3: Catastrophic | M3: Catastrophic | N3: Catastrophic | O3: Possible | P3: High | Q3: High | R3: High
A4: Almost Certain | B4: Medium | C4: Medium | D4: High | E4: Extreme | F4: Extreme | H4: Likelihood | I4: Likely | K4: Wet Periods | L4: Minor | M4: Minor | N4: Minor | O4: Possible | P4: Medium | Q4: Medium | R4: Medium
A5: Likely | B5: Low | C5: Medium | D5: High | E5: High | F5: Extreme | H5: Risk Rating | I5: High | K5: Hot Periods | L5: Insignificant | M5: Insignificant | N5: Insignificant | O5: Possible | P5: Low | Q5: Low | R5: Low
A6: Possible | B6: Low | C6: Medium | D6: Medium | E6: High | F6: High | K6: Cold Periods | L6: Insignificant | M6: Insignificant | N6: Insignificant | O6: Possible | P6: Low | Q6: Low | R6: Low
A7: Unlikely | B7: Low | C7: Medium | D7: Medium | E7: Medium | F7: Medium | H7: Always press update | K7: Volcano | L7: Insignificant | M7: Insignificant | N7: Insignificant | O7: Possible | P7: Low | Q7: Low | R7: Low
A8: Rare | B8: Low | C8: Low | D8: Low | E8: Low | F8: Medium | K8: Earthquake | L8: Insignificant | M8: Insignificant | N8: Insignificant | O8: Possible | P8: Low | Q8: Low | R8: Low
A9: No Risk | B9: No Risk | C9: No Risk | D9: No Risk | E9: No Risk | F9: No Risk | K9: Tsunamis | L9: Minor | M9: Minor | N9: Minor | P9: No Risk | Q9: No Risk | R9: No Risk
K10: Terrestrial Reserves (%) | L10: Catastrophic | M10: Catastrophic | N10: Catastrophic | O10: Possible | P10: High | Q10: High | R10: High
A11: Matrix deﬁnes the level of priority associated with each combination of consequence and likelihood. | K11: Fertilisers | L11: Major | M11: Major | N11: Major | O11: Possible | P11: High | Q11: High | R11: High
K12: Pesticides | L12: Insignificant | M12: Insignificant | N12: Insignificant | O12: Possible | P12: Low | Q12: Low | R12: Low
A13: 1 | B13: Extreme risks demand urgent attention at the most senior level and cannot be simply accepted as a part of routine operations without executive sanction. | K13: Renewable Water | L13: Insignificant | M13: Insignificant | N13: Insignificant | O13: Possible | P13: Low | Q13: Low | R13: Low
K14: Sulphur Dioxide Emissions | L14: Catastrophic | M14: Catastrophic | N14: Catastrophic | O14: Possible | P14: High | Q14: High | R14: High
K15: Waste Production | L15: Insignificant | M15: Insignificant | N15: Insignificant | O15: Possible | P15: Low | Q15: Low | R15: Low
K16: Waste Treatment | L16: Catastrophic | M16: Catastrophic | N16: Catastrophic | O16: Possible | P16: High | Q16: High | R16: High
A17: 2 | B17: High risks are the most severe that can be accepted as a part of routine operations without executive sanction but they will be the responsibility of the most senior operational management and reported upon at the executive level. | K17: Industry | L17: Moderate | M17: Moderate | N17: Moderate | O17: Possible | P17: Medium | Q17: Medium | R17: Medium
K18: Sanitation | L18: Major | M18: Major | N18: Major | O18: Possible | P18: High | Q18: High | R18: High
K19: Population | L19: Catastrophic | M19: Catastrophic | N19: Catastrophic | O19: Possible | P19: High | Q19: High | R19: High
K20: Population Growth | L20: Major | M20: Major | N20: Major | O20: Possible | P20: High | Q20: High | R20: High
A21: 3 | B21: Medium risks can be expected to form part of routine operations but they will be explicitly assigned to relevant managers for action, maintained under review and reported upon at senior management level. | K21: Tourists | L21: Major | M21: Major | N21: Major | O21: Possible | P21: High | Q21: High | R21: High
K22: Coastal Settlements | L22: Catastrophic | M22: Catastrophic | N22: Catastrophic | O22: Possible | P22: High | Q22: High | R22: High
K23: Environmental Agreements | L23: Insignificant | M23: Insignificant | N23: Insignificant | O23: Possible | P23: Low | Q23: Low | R23: Low
K24: Conflicts | L24: Insignificant | M24: Insignificant | N24: Insignificant | O24: Possible | P24: Low | Q24: Low | R24: Low
A25: 4 | B25: Low risks will be maintained under review but it is expected that existing controls will be sufﬁcient and no further action will be required to treat them unless they become more severe. | K25: RainClemencia | L25: Catastrophic | M25: Catastrophic | N25: Moderate | O25: Likely | P25: Extreme | Q25: Extreme | R25: High
A30: EVI | B30: Consequence | G30: Likelihood Scale
A31: 1 | B31: Insignificant | G31: Rating | H31: Recurrent risk | I31: Single event
A32: 2 | B32: Minor | G32: Almost certain | H32: Could occur several times per year | I32: More likely than not: probability greater than 50%
A33: 3 | B33: Moderate | G33: Likely | H33: May arise about once per year | I33: As likely as not: 50/50 chance
A34: 4 | B34: Major | G34: Possible | H34: May arise about once in 10 years | I34: Less likely than not but still appreciable: probability less than 50% but still quite high
A35: 5 | B35: Major | G35: Unlikely | H35: May arise about once in 25 years | I35: Unlikely but not negligible: probability noticeably greater than zero
A36: 6 | B36: Catastrophic | G36: Rare | H36: Unlikely during the next 25 years | I36: Negligible: probability very small, near zero
A37: 7 | B37: Catastrophic | H37: Ref: Likelihood scale adopted from AGO (Australian Greenhouse Office) 2006

Sheet Projections
A1: Year | B1: Actual Data | C1: Year | D1: Predicted Values | E1: Forecasting using Simple Linear Regression Models | I1: Title | J1: Rainfall at Clemencia
A2: 2003 | B2: 2820 | C2: 2003 | D2: 2820 | E2: Model Parameters | I2: X-label | J2: Year
A3: 2004 | B3: 2979.8 | C3: 2004 | D3: 2979.8 | E3: Slope | F3: -68.12714286 | I3: Y-Label | J3: Total Yearly
A4: 2005 | B4: 2780.6 | C4: 2005 | D4: 2780.6 | E4: Intercept | F4: 139199.9238
A5: 2006 | B5: 2312 | C5: 2006 | D5: 2312
A6: 2007 | B6: 1903.3 | C6: 2007 | D6: 1903.3 | E6: Prediction Ahead
A7: 2008 | B7: 2755.1 | C7: 2008 | D7: 2755.1 | E7: Step Ahead | F7: 10 | G7: Input Step Ahead
A8: 2009 | B8: 2627.8 | C8: 2009 | D8: 2627.8
A9: 2010 | B9: 2456.9 | C9: 2010 | D9: 2456.9 | E9: Instructions to Users:
A10: 2011 | B10: 1839.5 | C10: 2011 | D10: 1839.5
A11: 2012 | B11: 1440.5 | C11: 2012 | D11: 1440.5 | E11: Step 1: | F11: Input time series data in Columns A (time) & B (data value)
A12: 2013 | B12: 2025.7 | C12: 2013 | D12: 2025.7
A13: 2014 | B13: 1922 | C13: 2014 | D13: 1922
A14: 2015 | B14: 1999.6 | C14: 2015 | D14: 1999.6
A15: 2016 | B15: 1660.4 | C15: 2016 | D15: 1660.4 | E15: Step 2: | F15: Input the Step Ahead, i.e., Number forecasts ahead
A16: 2017 | B16: 2442.3 | C16: 2017 | D16: 2442.3
C17: 2018 | D17: 1719.349524
C18: 2019 | D18: 1651.222381
C19: 2020 | D19: 1583.095238 | E19: Step 3: | F19: You can edit Title, x-label and y-label
C20: 2021 | D20: 1514.968095
C21: 2022 | D21: 1446.840952
C22: 2023 | D22: 1378.71381
C23: 2024 | D23: 1310.586667 | E23: Step 4: | F23: Press Forecast button
C24: 2025 | D24: 1242.459524
C25: 2026 | D25: 1174.332381
C26: 2027 | D26: 1106.205238

Sheet IndicatorScale
B1: PLEASE INPUT BASE YEAR AND CURRENT YEAR DATA | H1: Base Year Statistics | L1: Indicator Confidence Interval
B2: Base Period Year | C2: Base Period Data | E2: Last Five Year | F2: Last Five Data | H2: Mean | I2: =AVERAGE(C:C) -> 2391.55 | L2: Confidence Interval for µ
B3: 2003 | C3: 2820 | E3: 2013 | F3: 2025.7 | H3: Standard Deviation | I3: =STDEV(C:C) -> 508.5045859 | L3: Confidence Level: | N3: 95 | O3: %
B4: 2004 | C4: 2979.8 | E4: 2014 | F4: 1922 | H4: Min | I4: =MIN(C:C) -> 1440.5 | L4: Critical Value: | N4: =IF(I6>=30,NORMINV(N3/100+(100-N3)/200,0,1),TINV(1-N3/100,I6-1)) -> 2.262157163 | O4: =IF(I6>30,"(Z-value)","(t-value)") -> (t-value)
B5: 2005 | C5: 2780.6 | E5: 2015 | F5: 1999.6 | H5: Max | I5: =MAX(C:C) -> 2979.8 | L5: CI is given by | M5: ( | N5: =$I$2-$N$4*$I$3/SQRT($I$6) -> 2027.787733 | O5: =$I$2+$N$4*$I$3/SQRT($I$6) -> 2755.312267 | P5: )
B6: 2006 | C6: 2312 | E6: 2016 | F6: 1660.4 | H6: n | I6: =COUNT(C:C) -> 10
B7: 2007 | C7: 1903.3 | E7: 2017 | F7: 2442.3
B8: 2008 | C8: 2755.1 | L8: Indicator Summary to be used in XLM Toolkit
B9: 2009 | C9: 2627.8 | H9: Last Five Year Statistics
B10: 2010 | C10: 2456.9 | H10: Mean | I10: =AVERAGE(F:F) -> 2010 | L10: Indicator Current Average value: | O10: =I10 -> 2010
B11: 2011 | C11: 1839.5 | H11: Standard Deviation | I11: =STDEV(F:F) -> 281.603489
B12: 2012 | C12: 1440.5 | H12: Min | I12: =MIN(F:F) -> 1660.4 | L12: Indicator Scale Min Value: | O12: =N5 -> 2027.787733
H13: Max | I13: =MAX(F:F) -> 2442.3
L14: Indicator Scale Max Max: | O14: =O5 -> 2755.312267
H15: Instructions
G16: Step 1: | H16: Input Data for Base year in Column A (Year) and B (Data)
G18: Step 2: | H18: Input Data for last five years in Column E (Year) and F (Data)

Sheet Maps and Data

Sheet ..
B3: 2007 | E3: 2013
B4: 2008 | E4: 2014
B5: 2009 | E5: 2015
B6: 2010 | E6: 2016
B7: 2011
B8: 2012

Sheet MRU
A1: Country Name | B1: Mauritius
A2: Land Area | B2: 2030
A3: Length of Maritime coast | B3: 177
A4: Shelf Area | B4: 2030
A5: Total Human Population | B5: 1263000

Sheet Data Backup (hidden)
A1: Indicator ID | B1: Category | C1: Sub-Index Name | D1: Health | E1: Water | F1: Coastal Zone | G1: Infrastructure | H1: Fisheries | I1: Agriculture | J1: Biodiversity | K1: Indicator Names | L1: Summary | M1: DefaultValue | N1: Units | O1: Year(s) | P1: Transformation | Q1: Transformed Value | R1: Source | S1: Additional Details if Summary not clear | T1: Vulnerability Reduction | U1: DefaultS1 | V1: DefaultS2 | W1: DefaultS3 | X1: DefaultS4 | Y1: DefaultS5 | Z1: DefaultS6 | AA1: DefaultMin | AB1: DefaultMax | AC1: DefaultEVI | AD1: UserMin | AE1: UserS1 | AF1: UserS2 | AG1: UserS3 | AH1: UserS4 | AI1: UserS5 | AJ1: UserMax | AK1: UserEVI
A2: 1 | B2: Weather & Climate | C2: Hazards | D2: 1 | E2: 1 | F2: 1 | G2: 1 | H2: 1 | I2: 1 | J2: 1 | K2: High Winds | L2: Average annual excess wind over the last five years (summing speeds on days during which the maximum recorded wind speed is greater than 20% higher than the 30 year average maximum wind speed for that month) averaged over all reference climate stations. | M2: 89.09 | N2: days/yr | O2: 1999-2003 | P2: LN(X) | Q2: =LN(M2) -> 4.489647095 | R2: NOAA | S2: This indicator captures the likelihood of damage from frequent and severe wind that can affect forests, fan fires, create storm surges, dry soils, spread air pollution, and interact with other stressors. A high score could indicate shifts in weather patterns and climate, and could negatively affect a country’s resilience to other hazards. | T2: Natural Phenomenon where human actions cannot directly influence the issue, but resilience against effects could be built up in other areas which are amenable to improvement (e.g maintain/ improve forest cover). | U2: 5 | V2: 5.3 | W2: 5.6 | X2: 5.9 | Y2: 6.1 | Z2: 6.4 | AA2: 5 | AB2: 6.4 | AD2: 5 | AE2: 5 | AF2: 5.28 | AG2: 5.56 | AH2: 5.84 | AI2: 6.12 | AJ2: 6.4
A3: 2 | B3: Weather & Climate | C3: Hazards | D3: 1 | E3: 1 | F3: 1 | G3: 1 | H3: 1 | I3: 1 | J3: 1 | K3: Dry Periods | L3: Average annual rainfall deficit (mm) over the past 5 years for all months with >20% lower rainfall than the 30 year monthly average, averaged over all reference climate stations. | M3: -1562 | N3: mm / station / yr | O3: 1999-2003 | P3: LN(|X|) | Q3: =LN(-M3) -> 7.35372233 | R3: NOAA GHCN | S3: This indicator captures not only the number of months with significantly lower rainfall, but also the strength of the deficit. Frequent and severe drought months could indicate shifts in weather patterns and climate, and could negatively affect a country’s resilience to other hazards (e.g. fires, water movements, ability of ecosystems to attenuate pollution). | T3: Natural Phenomenon where human actions cannot directly influence the issue, but resilience against effects could be built up in other areas which are amenable to improvement (e.g maintain/ improve forest cover, improve water management). | U3: 4 | V3: 4.5 | W3: 5 | X3: 5.5 | Y3: 6 | Z3: 6.5 | AA3: 4 | AB3: 6.5 | AD3: 4 | AE3: 4 | AF3: 4.5 | AG3: 5 | AH3: 5.5 | AI3: 6 | AJ3: 6.5
A4: 3 | B4: Weather & Climate | C4: Hazards | D4: 1 | E4: 1 | F4: 1 | G4: 1 | H4: 1 | I4: 1 | J4: 1 | K4: Wet Periods | L4: Average annual excess rainfall (mm) over the past 5 years for all months with >20% higher rainfall than the 30 year monthly average, averaged over all reference climate stations. | M4: 33 | N4: mm/station/year | O4: 1999-2003 | P4: sqrt(X) | Q4: =SQRT(M4) -> 5.744562647 | R4: NOAA GHCN | S4: This indicator captures not only the number of months with significantly higher rainfall, but also the amount of the excess. Frequent and severe wet months could indicate shifts in weather patterns and climate, and could negatively affect a country’s resilience to other hazards (e.g. water movements, ability of ecosystems to attenuate pollution) | T4: Natural Phenomenon where human actions cannot directly influence the issue, but resilience against effects could be built up in other areas which are amenable to improvement (e.g. maintain / improve forest cover; promote good landuse practices). | U4: 5 | V4: 7 | W4: 9 | X4: 11 | Y4: 13 | Z4: 15 | AA4: 5 | AB4: 15 | AD4: 5 | AJ4: 15
A5: 4 | B5: Weather & Climate | C5: Hazards | D5: 1 | E5: 1 | F5: 1 | G5: 1 | H5: 1 | I5: 1 | J5: 1 | K5: Hot Periods | L5: Average annual excess heat (degrees Farenheit) over the past 5 years for all days more than 9F (5°C) hotter than the 30 year mean monthly maximum, averaged over all reference climate stations. | M5: 0 | N5: degrees/yr | O5: 1999-2003 | P5: LN(X+1) | Q5: =LN(M5+1) -> 0 | R5: WMO | S5: This indicator is designed to capture stress on land surfaces and nearshore or shallow aquatic environments to periods of high temperatures that can affect productivity, oxygen levels, pollution, reproduction and symbiotic relationships and lead to mass mortality. Consequence: Regenerative ability of forests can be impaired in such cases. | T5: Natural Phenomenon where human actions cannot directly influence the issue, but resilience against effects could be built up in other areas which are amenable to improvement (e.g. maintain / improve forest cover; reduce other stresses on fragile ecosystems such as forests, steppes, wetlands and coral reefs) | U5: 3.5 | V5: 4 | W5: 4.5 | X5: 5 | Y5: 5.5 | Z5: 6 | AA5: 3.5 | AB5: 6 | AD5: 3.5 | AJ5: 6
A6: 5 | B6: Weather & Climate | C6: Hazards | D6: 1 | E6: 1 | F6: 1 | G6: 1 | H6: 1 | I6: 1 | J6: 1 | K6: Cold Periods | L6: Average annual heat deficit (degrees) over the past 5 years for all days more than 5°C cooler than the 30 year mean monthly minimum, averaged over all reference climate stations. | M6: 0 | N6: degrees / yr | O6: 1999-2003 | P6: LN(X+1) | Q6: =LN(M6+1) -> 0 | R6: WMO | S6: This indicator is designed to capture stress on land surfaces and nearshore or shallow aquatic environments to periods of low temperatures that can affect productivity, oxygen levels, pollution, reproduction and symbiotic relationships and lead to mass mortality. This indicator captures not only the number of days with significantly lower temperatures, but also the amount of the “heat deficit” | T6: This issue cannot be directly influenced by human actions, but resilience against effects could be built up in other areas which are amenable to improvement (e.g. maintain / improve forest cover; reduce other stresses on fragile ecosystems such as forests and steppes) | U6: 3.5 | V6: 4 | W6: 4.5 | X6: 5 | Y6: 5.5 | Z6: 6 | AA6: 3.5 | AB6: 6 | AD6: 3.5 | AJ6: 6
A7: 6 | B7: Weather & Climate | C7: Hazards | D7: 1 | E7: 1 | F7: 1 | G7: 1 | H7: 1 | I7: 1 | J7: 1 | K7: SST | L7: Average annual deviation in Sea Surface Temperatures (SST) in the last 5 years in relation to the 30 year monthly means (1961-1990) | M7: 3.908 | N7: degrees / yr | O7: Dec98-Nov03 | P7: LN(X) | Q7: =LN(M7) -> 1.363025734 | R7: CRU | S7: This indicator captures vulnerability to fluctuations in productivity, fisheries, currents, eddies, ENSO, cyclones & storms, blooms and coral bleaching. The indicator captures the total amount of the anomalies in SST, either as excess or deficit (using absolute values). | T7: This issue cannot be directly influenced by human actions, but resilience against effects could be built up in other areas which are amenable to improvement (e.g. build coastal resilience by controlling pollution, types of developments and resource use; maintain / improve forest cover). | U7: 1.3 | V7: 1.6 | W7: 1.9 | X7: 2.2 | Y7: 2.5 | Z7: 2.8 | AA7: 1.3 | AB7: 2.8 | AD7: 1.3 | AE7: 1.3 | AF7: 1.6 | AG7: 1.9 | AH7: 2.2 | AI7: 2.5 | AJ7: 2.8
A8: 7 | B8: Geology | C8: Hazards | D8: 1 | E8: 1 | F8: 1 | G8: 1 | H8: 1 | I8: 1 | J8: 1 | K8: Volcano | L8: Cumulative volcano risk as the weighted number of volcanoes with the potential for eruption greater than or equal to a Volcanic Explosively Index of 2 (VEI 2) within 100km of the country land boundary (divided by the area of land). | M8: 0 | N8: VEI Units / million sq km | O8: 2003 | P8: LN(X+1) | Q8: =LN(M8+1) -> 0 | R8: NOAA NGCD | S8: This indicator captures the risk of damage to ecosystems from the physical, chemical and biological disturbances associated with volcanic eruptions. Because the risk associated with volcanoes varies according to size and type, the signal incorporates the number of volcanoes capable of affecting a country, and its potential for damage. | T8: This issue cannot be directly influenced by human actions, but resilience against effects could be built up in other areas which are amenable to improvement (e.g. maintain / improve forest cover; promote good landuse practices; create reserves) | U8: 2 | V8: 3 | W8: 4 | X8: 5 | Y8: 6 | Z8: 7 | AA8: 2 | AB8: 7 | AD8: 2 | AJ8: 7
A9: 8 | B9: Geology | C9: Hazards | D9: 1 | E9: 1 | F9: 1 | G9: 1 | H9: 1 | I9: 1 | J9: 1 | K9: Earthquake | L9: Cumulative earthquake energy within 100km of country land boundaries measured as Local Magnitude (ML) ≥ 6.0 and occurring at a depth of less than or equal to fifteen kilometres (≤15km depth) over 5 years (divided by land area) | M9: 0 | N9: Number ML >= 6, Depth <= 15km | O9: 2001 | P9: None | Q9: =M9 -> 0 | R9: NOAA | S9: Vulnerability to habitat disturbance through movements of land, water and slides. This indicator captures the risks of damage to the environment from large-scale disturbances such as fluidisation of soils and muds, diversion of rivers and other water bodies, sunamis, slides, and direct damage to organisms associated with earth movements. | T9: This issue cannot be directly influenced by human actions, but resilience against effects could be built up in other areas which are amenable to improvement and which reduce the impacts of development activities (e.g. maintain / improve forest cover; promote good landuse practices). | U9: 1 | V9: 2 | W9: 3 | X9: 4 | Y9: 5 | Z9: 6 | AA9: 1 | AB9: 6 | AD9: 1 | AJ9: 6
A10: 9 | B10: Geology | C10: Hazards | D10: 1 | E10: 1 | F10: 1 | G10: 1 | H10: 1 | I10: 1 | J10: 1 | K10: Tsunamis | L10: Number of tsunamis or storms surges with run-up greater than 2 metres above Mean High Water Spring tide (MHWS) per 1000km coastline since 1900 | M10: 1.117318436 | N10: Number since 1900 >2m run-up | O10: 2003 | P10: None | Q10: =M10 -> 1.117318436 | R10: NOAA | S10: This indicator captures the potential loss of shorelines, coastal ecosystems and resources, and loss of species due to catastrophic run up of seawater onto coastal lands. Countries with frequent and severe tsunamis are at risk of severe or permanent damage to biodiversity, productivity and the ability to recover from other stressors. | T10: This issue cannot be directly influenced by human actions, but resilience against effects could be built up in other areas which are amenable to improvement (e.g. maintain / improve coastal forest cover; careful design of coastal structures and developments; promote good landuse practices) | U10: 0 | V10: 1 | W10: 2 | X10: 5 | Y10: 10 | Z10: 15 | AA10: 0 | AB10: 15 | AD10: 0 | AE10: 0 | AF10: 3 | AG10: 6 | AH10: 9 | AI10: 12 | AJ10: 15
A11: 10 | B11: Geology | C11: Hazards | G11: 1 | I11: 1 | J11: 1 | K11: Slides | L11: Number of slides recorded in the last 5 years (EMDAT definitions), divided by land area | M11: 0 | N11: Slides / million sq km land | O11: 1996-2000 | P11: LN(X+1) | Q11: =LN(M11+1) -> 0 | R11: EMDAT | S11: Vulnerability to habitat disturbance and persistence of ecosystems and species from catastrophic shifts in the land surface. The primary and cumulative effects of slides would be especially important if there are many endangered species, sensitive ecosystems, and interactions with on-going human impacts | T11: This issue cannot be directly influenced by human actions, but resilience against effects could be built up in other areas which are amenable to improvement (e.g. maintain / improve forest cover; promote good landuse practices) | U11: 0 | V11: 0.5 | W11: 1 | X11: 1.5 | Y11: 2 | Z11: 2.5 | AA11: 0 | AB11: 2.5 | AD11: 0 | AJ11: 2.5
A12: 11 | B12: Geography | C12: Resistance | G12: 1 | I12: 1 | J12: 1 | K12: Land Area | L12: Total land area (km2) | M12: 10830 | N12: sq km | O12: 2001 | P12: LN(X) | Q12: =LN(M12) -> 9.29007534 | R12: WRI | S12: This indicator captures the richness of habitat types and diversity, availability of refuges if damage is sustained or for protection, and species and habitat redundancy. It is generally considered that larger countries will have more options and the ‘critical mass’ required for ecological systems to persist and re-seed each other in the face of ecosystem stressors. | T12: This issue cannot be directly influenced by human actions, and is part of the inherent characteristics of a country. General environmental resilience could be built up by improving resource use; appropriate developments and increasing the area under reserves. | U12: 4 | V12: 6 | W12: 8 | X12: 10 | Y12: 12 | Z12: 14 | AA12: 4 | AB12: 14 | AD12: 4 | AJ12: 14
A13: 12 | B13: Geography | C13: Resistance | F13: 1 | H13: 1 | J13: 1 | K13: Country Dispersion | L13: Ratio of length of borders (land and maritime) to total land area | M13: 82.64081256 | N13: km / 1000 sq km | O13: 2001-2002 | P13: LN(X) | Q13: =LN(M13) -> 4.414503657 | R13: WRI 2000-2001, CIA 2002 | S13: This indicator captures the degree to which a country’s land area is fragmented and ‘thin’. Countries which are highly fragmented, comprised of many islands, or which have many peninsulas or land areas in thin strips are likely to be prone to more transboundary effects. | T13: This issue cannot be directly influenced by human actions, and is part of the inherent characteristics of a country. General environmental resilience could be built up by improving resource use; appropriate developments and increasing the area under reserves. | U13: 2 | V13: 3 | W13: 4 | X13: 5 | Y13: 6 | Z13: 7 | AA13: 2 | AB13: 7 | AD13: 2 | AJ13: 7
A14: 13 | B14: Geography | C14: Resistance | F14: 1 | J14: 1 | K14: Isolation | L14: Distance to nearest continent (km) | M14: 640 | N14: km | O14: 2000 | P14: None | Q14: =M14 -> 640 | R14: Times Comprehensive World Atlas | S14: This indicator captures the proximity of a country to the nearest continent. Note that if a country is within a continent, this value is zero. Isolated countries may have a greater risk of loss of ecosystem types and species during periods of stress if they are far away from refuges and sources of recolonisation. | T14: This issue cannot be directly influenced by human actions, and is part of the inherent characteristics of a country. General environmental resilience could be built up by improving resource use; appropriate developments and increasing the area under reserves. | U14: 0 | V14: 50 | W14: 100 | X14: 400 | Y14: 800 | Z14: 1600 | AA14: 0 | AB14: 1600 | AD14: 0 | AJ14: 1600
A15: 14 | B15: Geography | C15: Resistance | G15: 1 | J15: 1 | K15: Relief | L15: Altitude range (highest point subtracted from the lowest point in country) | M15: 2256 | N15: m | O15: 2001 | P15: None | Q15: =M15 -> 2256 | R15: CIA | S15: This indicator examines the vulnerability of a country related to biodiversity of habitats and species and the potential for habitat disturbance through movements of water and slides. A country with a large altitude range is likely to have a greater variety of ecosystems, which in very high altitude areas, or very low ones (e.g. the Black Sea) leads to the formation of “endemic habitat types”. | T15: This issue cannot be directly influenced by human actions, and is part of the inherent characteristics of a country. General environmental resilience could be built up by improving resource use; appropriate developments and increasing the area under reserves. | U15: 1500 | V15: 3000 | W15: 4500 | X15: 6000 | Y15: 7000 | Z15: 8000 | AA15: 1500 | AB15: 8000 | AD15: 1500 | AJ15: 8000
A16: 15 | B16: Geography | C16: Resistance | F16: 1 | J16: 1 | K16: Lowlands | L16: Percentage of land area less than or equal to 50m above sea level | M16: 100 | N16: % | O16: 2004 | P16: None | Q16: =M16 -> 100 | R16: Encarta Atlas | S16: This indicator focuses on the presence of lowlands in a country with implied impacts associated with pollution, ecosystem disturbance, flooding and coastal vulnerability. Areas of lowlands are those that will tend to be the first to flood, will tend to accumulate pollution that is mobilised by surface run-off, provide an important entry point (and extraction point) for groundwaters and if on the coasts of the sea or lakes may be subject to storm surges, tsunamis or sea level rise. They tend to be areas of high biodiversity and/or form critical habitats. | T16: This issue cannot be directly influenced by human actions, and is part of the inherent characteristics of a country. General environmental resilience could be built up by improving resource use; appropriate developments and increasing the area under reserves. | U16: 0 | V16: 15 | W16: 30 | X16: 45 | Y16: 60 | Z16: 75 | AA16: 0 | AB16: 75 | AD16: 0 | AJ16: 75
A17: 16 | B17: Geography | C17: Resistance | F17: 1 | H17: 1 | K17: Borders | L17: Number of land and sea borders (including EEZ) shared with other countries | M17: 8 | N17: number | O17: 1999 | P17: None | Q17: =M17 -> 8 | R17: CIA, Encarta | S17: This indicator captures the risk to terrestrial and aquatic ecosystems from transboundary risks including species introductions, lack of control of effects from neighbouring countries, lack of control of straddling stocks of resources, and uncontrolled migrations of humans (e.g. refugees). We consider that the greater the number of different jurisdictions bordering a country by land or sea, the greater the risks of neighbour effects – that is risks to the environment caused by the policies and behaviours of other countries. | T17: This issue can be directly influenced by human actions though agreements designed to reduce transboundary risks such as pollution, movements of migratory species and use of shared resources. | U17: 0 | V17: 2 | W17: 4 | X17: 6 | Y17: 8 | Z17: 10 | AA17: 0 | AB17: 10 | AD17: 0 | AJ17: 10
A18: 17 | B18: Resources & services | C18: Damage | J18: 1 | K18: Ecosystem Imbalance | L18: Ecological Imbalance as weighted average change in trophic level since fisheries began (for trophic level slice ≤3.35) | M18: -0.0343 | N18: ND | O18: ND | P18: |X| | Q18: =ABS(M18) -> 0.0343 | R18: UBC | S18: This indicator captures the risk of ecosystem stress, loss of diversity, damage to the trophic structure of ecosystems, and loss of balance. It focuses on the risk to aquatic ecosystems associated with shifting the natural relationships, diversity and energy-flows within and among ecosystems. Although fisheries data are used, the indicator is more generally concerned with the downstream | T18: This issue can be directly influenced by human actions though the adoption of ecosystem approaches to management of aquatic and terrestrial areas, and the use of their resources. | U18: 0 | V18: 0.02 | W18: 0.04 | X18: 0.06 | Y18: 0.08 | Z18: 0.1 | AA18: 0 | AB18: 0.1 | AD18: 0 | AJ18: 0.1
A19: 18 | B19: Resources & services | C19: Hazards | F19: 1 | G19: 1 | K19: Environmental Openess | L19: Average annual USD freight imports over the past 5 years by any means per km2 land area | M19: 367.867036 | N19: USD Thousands / sq km land | O19: 1996-2000 | P19: LN(X) | Q19: =LN(M19) -> 5.907721558 | R19: WRI | S19: This indicator captures the risk of damage to a country through the importation of foreign materials (physical, chemical and biological) by land, air or sea through the large volumes of freight that move around the globe annually. Countries with large amounts of freight moving into them are considered more at risk of inadvertent introductions of diseases, species and genetically modified organisms, than those with lower levels of freight movements. Freight imports may also be a mechanism for the introduction of pollution risks not normally found in a country – e.g. the import of radioactive substances, oil, chemicals. | T19: This issue can directly be influenced by quarantine control of freight movements and limiting or eliminating waste trading. Mechanisms could be put in place to contain accidental introductions where possible. General resilience building through management of rare and endangered organisms and establishing more reserves could also be undertaken. | U19: 1 | V19: 1.5 | W19: 2 | X19: 2.5 | Y19: 3 | Z19: 3.5 | AA19: 1 | AB19: 3.5 | AD19: 1 | AJ19: 3.5
A20: 19 | B20: Resources & services | C20: Resistance | H20: 1 | J20: 1 | K20: Migrations | L20: Number of known species that migrate outside the territorial area at any time during their life spans (including land and all aquatic species) / area of land | M20: 2.216066482 | N20: Spp / 1000 sq km land | O20: 2002 | P20: LN(X+1) | Q20: =LN(M20+1) -> 1.168159023 | R20: GROMS | S20: This indicator focuses of species which pass outside of the control of the country and which during that time may be affected by actions of surrounding countries, or distant nations utilising them as a resource. It focuses on biodiversity, resilience and persistence of species with large variances in population numbers and/or that are susceptible to local extinctions. | T20: This issue can be influenced through bilateral and multilateral treaties designed to reduce transboundary risks such as pollution, movements of migratory species and use of shared resources. General resilience building through management of rare and endangered organisms and establishing more reserves could also be undertaken. | U20: 1 | V20: 1.5 | W20: 2 | X20: 2.5 | Y20: 3 | Z20: 3.5 | AA20: 1 | AB20: 3.5 | AD20: 1 | AJ20: 3.5
A21: 20 | B21: Resources & services | C21: Resistance | H21: 1 | J21: 1 | K21: Endemic Species | L21: Number of known endemic species per million square kilometre land area | M21: 92243.76731 | N21: Spp / 1,000,000 sq km land | O21: 2000-2001 | P21: LN(X+1) | Q21: =LN(M21+1) -> 11.43220084 | R21: WRI | S21: This indicator focuses biodiversity and the risk of losing unique species. The more endemic species a country has, the more vulnerable it is because localised extinction cannot be re-supplied from elsewhere by natural or augmented recolonisation. Losses of key species can affect ecosystem function and the goods and services they provide. | T21: This issue can be influenced through identification and preservation of species and habitats unique to a country. General resilience building could be achieved through creating more reserves in terrestrial and aquatic habitats. | U21: 0 | V21: 2 | W21: 4 | X21: 6 | Y21: 8 | Z21: 10 | AA21: 0 | AB21: 10 | AD21: 0 | AJ21: 10
A22: 21 | B22: Resources & services | C22: Damage | H22: 1 | J22: 1 | K22: Introductions of Species | L22: Number of introduced species per 1000 square kilometre of land area | M22: 0.7386888273 | N22: Spp / 1,000 sq km land | O22: 2002 | P22: LN(X+1) | Q22: =LN(M22+1) -> 0.5531312817 | R22: FAO | S22: This indicator captures past species introductions to a country with implied impacts on biodiversity and ecosystem integrity. This may include impacts at the levels of populations, genetics, species and ecosystems through complex ecological interactions. | T22: This issue is difficult to rectify once introductions have occurred and exotic species have become established. This issue can directly be influenced by quarantine control of freight movements and mechanisms could be put in place to contain accidental introductions where possible. General resilience building through management of rare and endangered organisms and establishing more reserves. | U22: 0 | V22: 1 | W22: 1.5 | X22: 2 | Y22: 2.5 | Z22: 3 | AA22: 0 | AB22: 3 | AD22: 0 | AJ22: 3
A23: 22 | B23: Resources & services | C23: Damage | H23: 1 | J23: 1 | K23: Endangered Species | L23: Number of endangered and vulnerable species per 1000 sq km land area (IUCN definitions) | M23: 22.16066482 | N23: Spp / 1,000 sq km land | O23: 2000 | P23: None | Q23: =M23 -> 22.16066482 | R23: IUCN | S23: This indicator focuses on those species that have become endangered or threatened in a country with implied impacts on biodiversity and ecosystem integrity. These are the species most likely to next become extinct, and may already be resulting, by their reduced numbers, in impacts at the levels of populations, genetics, species and ecosystems through complex ecological interactions. | T23: This issue can be influenced through identification and preservation of species and habitats under threat in a country. General resilience building could be achieved through reducing pressure on threatened environments and species and by creating more reserves in terrestrial and aquatic habitats. | U23: 0 | V23: 1 | W23: 2 | X23: 3 | Y23: 4 | Z23: 5 | AA23: 0 | AB23: 5 | AD23: 0 | AJ23: 5
A24: 23 | B24: Resources & services | C24: Damage | H24: 1 | J24: 1 | K24: Extinctions of Species | L24: Number of species known to have become extinct since 1900 per 1000 sq km land area (IUCN definitions). | M24: 0.7386888273 | N24: Spp / 1,000 sq km land | O24: 2000 | P24: None | Q24: =M24 -> 0.7386888273 | R24: IUCN | S24: This indicator focuses on those species that have become extinct in a country with implied impacts on biodiversity and ecosystem integrity. The loss of these species has resulted in a loss of biodiversity, and may also have resulted in impacts on ecosystem structure and function through complex ecological interactions. | T24: Extinctions is already underway. Actions to be taken have to do with preservation of the endangered organisms and habitats under threat in a country. General resilience building could also be achieved through creating more reserves in terrestrial and aquatic habitats. | U24: 0 | V24: 0.1 | W24: 0.2 | X24: 0.3 | Y24: 0.4 | Z24: 0.5 | AA24: 0 | AB24: 0.5 | AD24: 0 | AJ24: 0.5
A25: 24 | B25: Resources & services | C25: Damage | I25: 1 | J25: 1 | K25: Vegetation Cover (%) | L25: Percentage of natural and regrowth vegetation cover remaining (include forests, wetlands, prairies, tundra, desert and alpine associations). | M25: 35.6 | N25: % of original cover | O25: 1996 | P25: |X| | Q25: =M25 -> 35.6 | R25: WRI | S25: This indicator focuses on the loss of natural vegetation cover in a country with implied impacts on biodiversity and ecosystem integrity. Losing natural vegetation has resulted in a loss of biodiversity, and have maybe resulted in impacts on ecosystem structure and function through complex ecological interactions. | T25: The first action will be to prevent further losses of whatever natural vegetation cover remains in a country. General resilience building could also be achieved through rehabilitation of degraded habitats, allowing areas to regenerate, better land use and creating more reserves in terrestrial habitats. | U25: -80 | V25: -60 | W25: -40 | X25: -20 | Y25: -10 | Z25: 0 | AA25: -80 | AB25: 0 | AD25: -80 | AJ25: 0
A26: 25 | B26: Resources & services | C26: Hazards | I26: 1 | J26: 1 | K26: Loss of Vegetation Cover (%) | L26: Net percentage change in natural vegetation cover over the last five years | M26: -7.45 | N26: % change (-ve = loss) | O26: 1995-2000 | P26: None | Q26: =M26 -> -7.45 | R26: WRI | S26: This measures the rate of loss or gain of natural vegetation cover in countries. It focuses on biodiversity, ecosystem resilience, the capacity of a country to attenuate pollution, prevention of soil loss and on-going soil development, reduction of runoff, recharging of ground waters and soil formation. | T26: The first action will be to prevent further losses of whatever natural vegetation cover remains in a country. General resilience building could also be achieved through rehabilitation of degraded habitats, allowing areas to regenerate, better landuse and creating more reserves in terrestrial habitats. | U26: 0 | X26: 0 | Y26: -1 | Z26: -2 | AA26: 0 | AB26: -2 | AD26: 0 | AJ26: -2
A27: 26 | B27: Resources & services | C27: Damage | G27: 1 | J27: 1 | K27: Habitat Fragmentation (Roads) | L27: Total length of all roads in a country divided by land area | M27: 1.754385965 | N27: km / sq km | O27: 1999 | P27: LN(X+1) | Q27: =LN(M27+1) -> 1.013194538 | R27: World Bank | S27: This is a proxy measure for pressure on ecosystems resulting from fragmentation into discontinuous pieces. It also relates to habitat disturbance and degradation. | T27: Mecanisms that reducing fragmentation of land by maximising use of uniterrupted space in non-urban areas for road planning. General resilience building could also be achieved through improvements in related issues, such as rehabilitation of degraded habitats, allowing deforested areas to regenerate, and creating more reserves in terrestrial habitats. | U27: 0.2 | V27: 0.4 | W27: 0.6 | X27: 0.8 | Y27: 1 | Z27: 1.2 | AA27: 0.2 | AB27: 1.2 | AD27: 0.2 | AJ27: 1.2
A28: 27 | B28: Resources & services | C28: Damage | G28: 1 | K28: Degradation (%) | L28: Percent of land area that is either severely or very severely degraded (FAO/AGL Terrastat definitions) | M28: 101.5697138 | N28: % | O28: 2000 | P28: None | Q28: =M28 -> 101.5697138 | R28: FAO / AGL | S28: This indicator captures the status of loss of ecosystems in a country and highlights the breakdown of ecosystems which leads to decreasing iodiversity, soil quality, resilience against natural events and the assimilative capacity of the environment. | T28: Mechanisms destroying the environment should be stopped and punished. Programmes for rehabilitation and/or allowing natural regeneration could be put in place. General resilience building could also be achieved through improvements in land use and other related issues, such as creating more reserves in terrestrial habitats. | U28: 5 | V28: 10 | W28: 15 | X28: 20 | Y28: 25 | Z28: 50 | AA28: 5 | AB28: 50 | AD28: 5 | AJ28: 50
A29: 28 | B29: Resources & services | C29: Hazards | E29: 1 | G29: 1 | J29: 1 | K29: Terrestrial Reserves (%) | L29: Percent of terrestrial land area legally set aside as no take reserves | M29: 0.1 | N29: % of land area | O29: 1999 | P29: None | Q29: =M29 -> 0.1 | R29: WCMC, WRI | S29: This indicator captures the increase in resilience, function of pollution attenuation, groundwater recharge, limits to losses of biodiversity and refuges afforded by the presence of adequate terrestrial reserves (including aquatic ecosystems located within the land area) in a country. Reserves may be one of the few ways managers could off-set some other environmental damage and build resilience against natural events that can damage the environmental support system. | T29: Setting aside reserves of 20% of the land area is probably the most powerful action that could be taken to build resilience against all other pressures on the environment. Terrestrial reserves can be used as water catchment areas. | U29: 20 | V29: 15 | W29: 10 | X29: 5 | Y29: 0 | AA29: 20 | AB29: 0 | AD29: 20 | AJ29: 0
A30: 29 | B30: Resources & services | C30: Hazards | F30: 1 | H30: 1 | J30: 1 | K30: Marine Reserves (%) | L30: Percentage of continental shelf legally designated as marine protected areas (MPAs) | M30: 15.24132477 | N30: % | O30: 1999 | P30: None | Q30: =M30 -> 15.24132477 | R30: WCMC (MPAs), WRI (Shelf) | S30: This indicator captures the increase in resilience, function of pollution attenuation and fisheries production, limits to losses of biodiversity and refuges afforded by the presence of adequate marine reserves in a country and it also focuses on areas with the most intact marine environments and the level of environmental management. Reserves may be one of the few ways managers could off-set some other environmental damage and build resilience against natural events that can damage the environmental support system. | T30: Setting aside reserves of 20% of the marine area is probably the most powerful action that could be taken to build resilience against all other pressures on the environment. | U30: 20 | V30: 15 | W30: 10 | X30: 5 | Y30: 0 | AA30: 20 | AB30: 0 | AD30: 20 | AJ30: 0
A31: 30 | B31: Resources & services | C31: Hazards | I31: 1 | K31: Intensive Farming | L31: Annual tonnage of intensively farmed animal products (includes aquaculture, pigs, poultry) produced over the last five years per square kilometre land area. | M31: 1398.090489 | N31: t / sq km / yr | O31: 1996-2000 | P31: LN(X+1) | Q31: =LN(M31+1) -> 7.243577654 | R31: FAO | S31: This indicator captures the risk of pollution, eutrophication, ecosystem loss or damage and the risk of diseases and plagues. It focuses on lands being used for intensive agriculture, which we define as those in which the wastes produced over the land are in excess of the ability of that same land area to attenuate them. Intensive farming includes the farming of poultry, pigs, aquaculture, and some farming of cattle and other animals where kept in feed lots and involves clearing of land, feeding, heavy use of pesticides and other medications and a concentrated production of wastes. | T31: Risks related to use of medicines, pesticides and other chemicals and production of concentrated wastes. Mechanisms for reducing their use and/or impacts on the environment through better husbandry and treatment of wastes would reduce risks associated with this issue | U31: 2 | V31: 3 | W31: 4 | X31: 5 | Y31: 6 | Z31: 7 | AA31: 2 | AB31: 7 | AD31: 2 | AJ31: 7
A32: 31 | B32: Resources & services | C32: Hazards | D32: 1 | E32: 1 | I32: 1 | J32: 1 | K32: Fertilisers | L32: Average annual intensity of fertiliser use over the total land area over the last 5 years. | M32: 2150.507849 | N32: kg / sq km / yr | O32: 1995-1997 | P32: LN(X+1) | Q32: =LN(M32+1) -> 7.6739242 | R32: WRI, OECD | S32: This indicator captures the risk to terrestrial, aquatic ecosystems and ground waters from the use of chemical NPK fertilisers. This indicator is a measure of damage to ecosystems, water and soil quality, coral reefs and other sensitive organisms through eutrophication, pollution, soil damage and salinisation. | T32: Systems of agriculture that do not require large applications of NPK fertilisers should be explored, this might include mechanisms for recycling organic wastes. General resilience building would be through reducing other pressures on the receiving environments that could interact with large inputs of fertilisers. | U32: 4 | V32: 6 | W32: 7 | X32: 8 | Y32: 9 | Z32: 10 | AA32: 4 | AB32: 10 | AD32: 4 | AJ32: 10
A33: 32 | B33: Resources & services | C33: Hazards | D33: 1 | E33: 1 | G33: 1 | I33: 1 | J33: 1 | K33: Pesticides | L33: Average annual pesticides used as kg/km2/year over total land area over last 5 years. | M33: ND | N33: kg / sq km / yr | O33: 1996 | P33: LN(X+1) | Q33: =IF(M33="ND","ND",LN(M33+1)) -> ND | R33: WRI, OECD | S33: This indicator captures the risk to terrestrial, aquatic ecosystems and ground waters from heavy use of pesticides. The indicator focuses on damage and pollution of ecosystems, soil damage, damage to reproductive systems of organisms, loss of species, and damage to aquatic organisms including fisheries and coral reefs. | T33: Systems of agriculture that do not require large applications of NPK fertilisers should be explored, this might include mechanisms for recycling organic wastes. General resilience building would be through reducing other pressures on the receiving environments that could interact with large inputs of fertilisers. | U33: 0 | V33: 0.5 | W33: 1 | X33: 2 | Y33: 3 | Z33: 4 | AA33: 0 | AB33: 4 | AD33: 0 | AJ33: 4
A34: 33 | B34: Resources & services | C34: Hazards | I34: 1 | J34: 1 | K34: Biotechnology | L34: Cumulative number of deliberate field trials of genetically modified organisms conducted in the country since 1986 | M34: 0 | N34: Total number trials | O34: 2000 | P34: None | Q34: =M34 -> 0 | R34: ISAAA, BINAS, OECD | S34: This indicator captures the risk to genetic diversity, genetic pollution and unpredictable ecosystem effects of introducing incompletely tested and/or unpredictable bioengineered organisms into the environment. This includes new toxin-producing organisms, terminators (the use of deliberately sterile organisms is often used as a biological control method for pests) or organisms with new ecological behaviours. This indicator operates under the precautionary principle. Precautionary principle: A strategy to cope with possible risks where scientific understanding is yet incomplete. | T34: Deliberate introductions of organisms that may have unpredictable interactions with the environment should not be undertaken. Laboratory tests are not reliable enough for field tests as the environment makes the consequences unpredicatble. Each GMO introduced into the environment carries a similar risk to an introduced species. | U34: 0 | Y34: 20 | Z34: 50 | AA34: 0 | AB34: 50 | AD34: 0 | AJ34: 50
A35: 34 | B35: Resources & services | C35: Hazards | F35: 1 | H35: 1 | K35: Productivity Overfishing | L35: Average ratio of productivity : fisheries catch over the last 5 years | M35: 496338.0741 | N35: tC / sq km / yr : t fish / sq km / yr | O35: 1994-1998 | P35: LN(X) | Q35: =LN(M35) -> 13.11501257 | R35: FAO, UBC | S35: This indicator captures the risk of damage to fisheries stocks by examining rates of extraction in relation to the potential for the environment to replenish those stocks (productivity). This indicator should be read in combination with Indicator 39 which focuses on catch per human effort. | T35: Fisheries policy that keeps catches within overall sustainable limits of the country’s productivity. General resilience can be built by creating marine reserves. | U35: 10 | V35: 11 | W35: 12 | X35: 13 | Y35: 14 | Z35: 15 | AA35: 10 | AB35: 15 | AD35: 10 | AJ35: 15
A36: 35 | B36: Resources & services | C36: Hazards | F36: 1 | H36: 1 | K36: Fishing Effort | L36: Average annual number of fishers per kilometre of coastline over the last 5 years | M36: 9.166480447 | N36: fishers / yr / km coast | O36: 1994-1996 | P36: LN(X+1) | Q36: =LN(M36+1) -> 2.319096078 | R36: WRI | S36: This indicator captures the risk of damage to fisheries stocks through overcapacity of human effort. In this indicator we have tried to capture all fishers, not just the commercial fleet. This indicator should be read in combination with Indicator 24, which focuses on ecological overfishing. | T36: Fisheries policy that keeps catches within overall sustainable limits of the country’s productivity. General resilience can be built by creating marine reserves. | U36: 2 | V36: 2.5 | W36: 3 | X36: 3.5 | Y36: 4 | Z36: 4.5 | AA36: 2 | AB36: 4.5 | AD36: 2 | AJ36: 4.5
A37: 36 | B37: Resources & services | C37: Hazards | E37: 1 | G37: 1 | J37: 1 | K37: Renewable Water | L37: Average annual water usage as percentage of renewable water resources over the last 5 years | M37: 9.574468085 | N37: % | O37: 1993 | P37: None | Q37: =M37 -> 9.574468085 | R37: WRI 2000-2001 | S37: This indicator captures the risk to terrestrial environments, aquatic ecosystems and ground waters from over-extraction of freshwater resources. It focuses on sustainable use of surface free water and groundwater and damage through salinisation, extraction of functionally non-renewable groundwater, and damage to rivers, lakes and other habitats. | T37: Policies that ensure extractions of water from the environment are within sustainable limits. Water should be taken from renewable sources and used within limits so that other elements of the environment can function. General resilience can be built by managing watersheds, wetlands, groundwater and forests which are important elements of how ecosystems interact with the hydrological cycle. | U37: 10 | V37: 20 | W37: 40 | X37: 60 | Y37: 80 | Z37: 100 | AA37: 10 | AB37: 100 | AD37: 10 | AJ37: 100
A38: 37 | B38: Resources & services | C38: Hazards | D38: 1 | E38: 1 | G38: 1 | J38: 1 | K38: Sulphur Dioxide Emissions | L38: Average annual SO2 emissions over the last 5 years | M38: 9.335180055 | N38: t / sq km / yr | O38: 1995 | P38: LN(X+1) | Q38: =LN(M38+1) -> 2.335553615 | R38: GEO 3 | S38: This indicator captures the risk to ecosystem health from air pollution, including its downstream effects. High rates of emissions of gases from industry present risks to all aspects of the environment through diffuse pathways, including deposition by rain. | T38: Policies that ensure managed emissions or clean industry should be examined and implemented. General resilience can be built by maintaining and restoring wetlands, forests and other ecosystems that encourage biodegradation of industrial wastes. | U38: 0.25 | V38: 0.5 | W38: 0.75 | X38: 1 | Y38: 1.5 | Z38: 2 | AA38: 0.25 | AB38: 2 | AD38: 0.25 | AJ38: 2
A39: 38 | B39: Resources & services | C39: Hazards | D39: 1 | E39: 1 | G39: 1 | K39: Waste Production | L39: Average annual net amount of generated and imported toxic, hazardous and municipal wastes per square kilometre land area over the last 5 years | M39: ND | N39: t/km2/yr | O39: 1996-2000 | P39: LN(X+1) | Q39: =IF(M39="ND","ND",LN(M39+1)) -> ND | R39: UNEP 1998, EEA 2001, MZPSR | S39: This indicator captures the risk to terrestrial, aquatic ecosystems and ground waters from toxic and municipal wastes. All such wastes need a suitable area of land or volume of water for their eventual attenuation. | T39: Policies that ensure wastes are minimised and used efficiently through recycling. Waste importation should be reduced or stopped. General resilience can be built by maintaining and restoring forests and other ecosystems that encourage biodegradation of wastes. | U39: 1 | V39: 2 | W39: 3 | X39: 4 | Y39: 5 | Z39: 6 | AA39: 1 | AB39: 6 | AD39: 1 | AJ39: 6
A40: 39 | B40: Resources & services | C40: Hazards | D40: 1 | E40: 1 | G40: 1 | K40: Waste Treatment | L40: Mean annual percent of hazardous, toxic and municipal waste effectively managed and treated over the past 5 years. | M40: ND | N40: ND | O40: ND | P40: None | Q40: =M40 -> ND | R40: ND | S40: This indicator captures the proportion of wastes rendered less harmful. Vulnerability is in relation to risk to terrestrial, aquatic ecosystems and ground waters from toxic and municipal wastes and how they are treated. | T40: Policies that ensure wastes are minimised and used efficiently through recycling. Waste importation should be reduced or stopped. General resilience can be built by maintaining and restoring forests and other ecosystems that encourage biodegradation of wastes. | U40: 100 | V40: 80 | W40: 60 | X40: 50 | Y40: 40 | Z40: 30 | AA40: 100 | AB40: 30 | AD40: 100 | AJ40: 30
A41: 40 | B41: Resources & services | C41: Hazards | E41: 1 | G41: 1 | K41: Industry | L41: Average annual use of electricity for industry over the last 5 years per square kilometre of land | M41: 14.33933518 | N41: toe / km2 | O41: 1997 | P41: None | Q41: =M41 -> 14.33933518 | R41: WRI | S41: This indicator captures all major potential chemical and other industrial polluters that could cause significant environmental damage from accidents and diffuse pollution, including acid rain, not normally recorded as part of waste streams. It also captures electricity generation and/or use specifically for purposes of industry, which in itself has ecological consequences. This indicator is used to take into account accidents such as the Bhopal chemical explosion in India, as well as incidents such as the Chernobyl and more recently the Japanese nuclear disaster. | T41: Policies that ensure clean industry with rapid and effective response to accidents, waste minimisation and recycling. General resilience can be built by maintaining and restoring forests and other ecosystems that encourage biodegradation of wastes. | U41: 5 | V41: 10 | W41: 20 | X41: 50 | Y41: 100 | Z41: 200 | AA41: 5 | AB41: 200 | AD41: 5 | AJ41: 200
A42: 41 | B42: Resources & services | C42: Hazards | F42: 1 | H42: 1 | J42: 1 | K42: Spills | L42: Total number of spills of oil and hazardous substances greater than 1000 litres on land, in rivers or within territorial waters per million km coast during the last five years | M42: 0 | N42: Number of spills / million km coasts | O42: 1996-2000 | P42: None | Q42: =M42 -> 0 | R42: ITOPF 2002 | S42: This indicator captures the risk to marine, estuarine, riverine, lake, ground water and terrestrial ecosystems from spills of hydrocarbons and other toxic fluids. Only spills greater than 1,000 litres are included. | T42: Policies that promote safe handing of hazardous substances and ensure rapid and effective response to accidental spills. General resilience can be built by maintaining and restoring coasts, wetlands and forests as well as other ecosystems that encourage biodegradation of wastes. | U42: 0 | V42: 50 | W42: 100 | X42: 150 | Y42: 200 | Z42: 250 | AA42: 0 | AB42: 250 | AD42: 0 | AJ42: 250
A43: 42 | B43: Resources & services | C43: Hazards | F43: 1 | G43: 1 | J43: 1 | K43: Mining | L43: Average annual mining production (include all surface and subsurface mining and quarrying) per km2 of land area over the past 5 years. | M43: 957.0655845 | N43: t / km2 / yr | O43: 1996-2000 | P43: LN(X+1) | Q43: =LN(M43+1) -> 6.864916235 | R43: USGS, World Nuclear Assoc, Diamond Registry, Salt Inst | S43: This indicator captures the risk to terrestrial, aquatic ecosystems and ground waters from the effects of ecosystem disturbance, accidents, oil spills and toxic leachates, and processing from mining of all kinds. All disturbance can lead to vulnerability to other processes, human and natural, and wastes need a suitable area of land or volume of water for their eventual attenuation or long term deposition. High levels of mining activity present risks to all aspects of the environment. | T43: Policies that ensure whole life management of mines, including waste minimisation, stablisation and rehabilitation. Waste importation through bringing of ores should be minimised. General resilience can be built by maintaining and restoring forests and other ecosystems that encourage biodegradation of wastes. | U43: 1 | V43: 2 | W43: 3 | X43: 4 | Y43: 5 | Z43: 6 | AA43: 1 | AB43: 6 | AD43: 1 | AJ43: 6
A44: 43 | B44: Resources & services | C44: Hazards | D44: 1 | E44: 1 | G44: 1 | K44: Sanitation | L44: Density of population without access to safe sanitation (WHO definitions) | M44: 27.07478855 | N44: people / km2 | O44: 1990-1997 | P44: LN(X+1) | Q44: =LN(M44+1) -> 3.334871969 | R44: WRI | S44: This indicator is a proxy measure for how human waste is treated before it enters the environment. We are taking safe sanitation as an indication of at least some pre-treatment of sewage before it enters stream, groundwater recharge, coastal and land areas. | T44: Policies that ensure human wastes are treated to secondary or higher levels before being released to the environment (Some are not to be treated as such if they do not have a big impact on the ecosystem). General resilience can be built by maintaining and restoring forests and other ecosystems that encourage biodegradation of wastes. | U44: 1.5 | V44: 2 | W44: 2.5 | X44: 3 | Y44: 3.5 | Z44: 4 | AA44: 1.5 | AB44: 4 | AD44: 1.5 | AJ44: 4
A45: 44 | B45: Resources & services | C45: Hazards | G45: 1 | K45: Vehicles | L45: Number of vehicles per square kilometre of land area (most recent data) | M45: 10.0915121 | N45: vehicles / km2 | O45: ND | P45: LN(X+1) | Q45: =LN(M45+1) -> 2.40618014 | R45: WRI 2000-2001 | S45: This indicator captures the risk to terrestrial ecosystems in the form of habitat damage, habitat fragmentation, loss of biodiversity, pollution hazardous wastes and industries, including air and lead pollution on land and in waterways. | T45: Policies that promote public and clean transport options and good waste management, including efficient use of wastes through recycling. General resilience can be built by maintaining and restoring forests and creating reserves. | U45: 1 | V45: 1.5 | W45: 2 | X45: 2.5 | Y45: 3 | Z45: 3.5 | AA45: 1 | AB45: 3.5 | AD45: 1 | AJ45: 3.5
A46: 45 | B46: Human populations | C46: Damage | D46: 1 | E46: 1 | F46: 1 | G46: 1 | H46: 1 | I46: 1 | J46: 1 | K46: Population | L46: Total human population density (number per km2 land area) | M46: 238.5041551 | N46: people / km2 | O46: 2001 | P46: LN(X+1) | Q46: =LN(M46+1) -> 5.478570766 | R46: US Bureau of Census | S46: This is a proxy measure for pressure on the environment resulting from the number of humans being supported per unit of land. The greater numbers of people increases pressure on the environment for resources, for the attenuation of wastes and physical disturbance of the environment. | T46: Policies that keep human population pressures within sustainable limits. This includes lifestyle choices and minimising the ecological footprint and levels of consumption. General resilience can be built by maintaining and restoring damaged ecosystems, minimising wastes and creating terrestrial and aquatic reserves. | U46: 3 | V46: 3.5 | W46: 4 | X46: 4.5 | Y46: 5 | Z46: 5.5 | AA46: 3 | AB46: 5.5 | AD46: 3 | AJ46: 5.5
A47: 46 | B47: Human populations | C47: Hazards | D47: 1 | E47: 1 | F47: 1 | G47: 1 | H47: 1 | I47: 1 | J47: 1 | K47: Population Growth | L47: Annual human population growth rate over the last 5 years | M47: 0.5848279708 | N47: % | O47: 1996-2001 | P47: None | Q47: =M47 -> 0.5848279708 | R47: US Bureau of Census | S47: This indicator focuses on the potential for damage relating to expanding human populations. It signals increasing rates of habitat damage, exploitation of naturalresources and disposal of wastes that will need to be assimilated into the environment. It also captures the risk of infrastructure not being able to keep up with demand for issues such as waste treatment. | T47: Policies that keep human population pressures within sustainable limits. This includes lifestyle choices and minimising the ecological footprint and levels of consumption. General resilience can be built by maintaining and restoring damaged ecosystems, minimising wastes and creating terrestrial and aquatic reserves | U47: 0 | V47: 0 | W47: 0.5 | X47: 1 | Y47: 1.5 | Z47: 2 | AA47: 0 | AB47: 2 | AD47: 0 | AJ47: 2
A48: 47 | B48: Human populations | C48: Hazards | D48: 1 | E48: 1 | F48: 1 | G48: 1 | H48: 1 | I48: 1 | J48: 1 | K48: Tourists | L48: Average annual number of international tourists per km2 land over the past 5 years. | M48: 107.2945522 | N48: people/km2/yr | O48: 1996-2000 | P48: LN(X+1) | Q48: =LN(M48+1) -> 4.68485485 | R48: WTO, Tourist Board | S48: This is a measure for the additional load of all human impacts associated with international visitors and not reported in human population statistics. Tourists place additional pressure on the environment through increasing demands on local resources and through creation of pollution as well as physical disturbances of the environment. It is possible that their environmental burden is greater than that of residents. | T48: Options for ecotourism could be examined. Policies that ensure that capital damage to the environment and wastes are minimised. General resilience can be built by maintaining and restoring forests and other ecosystems and creating terrestrial and aquatic reserves. | U48: 3 | V48: 3.5 | W48: 4 | X48: 4.5 | Y48: 5 | Z48: 5.5 | AA48: 3 | AB48: 5.5 | AD48: 3 | AJ48: 5.5
A49: 48 | B49: Human populations | C49: Damage | D49: 1 | E49: 1 | F49: 1 | G49: 1 | H49: 1 | I49: 1 | J49: 1 | K49: Coastal Settlements | L49: Density of people living in coastal settlements (i.e. with a city centre within 100km of any maritime or lake* coast). | M49: 238.5041551 | N49: people/km2 | O49: 1995 | P49: LN(X+1) | Q49: =LN(M49+1) -> 5.478570766 | R49: WRI 2000-2001 | S49: This indicator captures the focus of stress on coastal ecosystems, often the most productive living areas in a country, through pollution, eutrophication, resource depletion and habitat degradation. | T49: Policies that manage ecosystems and their use at the interface between land and sea, lakes or rivers. Emphasis should be on fragile habitats such as swamps, mangroves, estuaries, lakes. General resilience can be built by maintaining and restoring damaged ecosystems and creating reserves. | U49: 3 | V49: 3.5 | W49: 4 | X49: 4.5 | Y49: 5 | Z49: 5.5 | AA49: 3 | AB49: 5.5 | AD49: 3 | AJ49: 5.5
A50: 49 | B50: Human populations | C50: Hazards | D50: 1 | E50: 1 | F50: 1 | G50: 1 | H50: 1 | I50: 1 | J50: 1 | K50: Environmental Agreements | L50: Number of environmental treaties in force in a country | M50: 68 | N50: treaties | O50: 2003 | P50: None | Q50: =M50 -> 68 | R50: SEDAC / CIESIN | S50: This indicator captures the level of management and stewardship of the environment in a country. Two aspects of legislation are needed: the message to the public that environmental management is essential, and the effectiveness of controls. The benefits of good management would be especially important if there are many endangered species, sensitive ecosystems, and interactions with on-going human impacts. | T50: Becoming party to agreements that help the country to address its most significant issues as identified by the EVI. Use assistance in the form of information, technology, and others to formulate and implement national-level actions to address environmental concerns. | U50: 60 | V50: 50 | W50: 40 | X50: 30 | Y50: 20 | Z50: 10 | AA50: 60 | AB50: 10 | AD50: 60 | AJ50: 10
A51: 50 | B51: Human populations | C51: Damage | D51: 1 | E51: 1 | F51: 1 | G51: 1 | H51: 1 | I51: 1 | J51: 1 | K51: Conflicts | L51: Average number of conflict years per decade within the country over the past 50 years. | M51: 0 | N51: Average conflict years / decade | O51: 1991-2000 | P51: None | Q51: =M51 -> 0 | R51: EMDAT | S51: This indicator captures the risk to terrestrial, aquatic ecosystems and ground waters related to human conflicts. Conflicts can result in habitat disturbance and degradation, pollution and a complete breakdown in environmental management. The time frame used reflects the long term nature of conflict-related damage to the environmental support system. | T51: Policies that reduce and clean up pollution and war-related hazards, rehabilitate damaged areas and ensure people in affected areas are given relief so that they do not need to make inefficient emergency use of resources and services. | U51: 0 | X51: 0 | Y51: 2 | Z51: 5 | AA51: 0 | AB51: 5 | AD51: 0 | AJ51: 5
A52: 51 | B52: Weather & Climate | K52: Rainfall | L52: Average Rainfall. | M52: 1100 | N52: mm | O52: 2017 | P52: LN(X) | Q52: 7.003065459 | R52: MMS | U52: 0 | V52: 2 | W52: 4 | X52: 6 | Y52: 8 | AA52: 0 | AB52: 10 | AD52: 0 | AE52: 0 | AF52: 2 | AG52: 4 | AH52: 6 | AI52: 8 | AJ52: 10

Sheet Data (hidden)
A1: Indicator ID | B1: Category | C1: Sub-Index Name | D1: Health | E1: Water | F1: Coastal Zone | G1: Infrastructure | H1: Fisheries | I1: Agriculture | J1: Biodiversity | K1: Indicator Names | L1: Summary | M1: DefaultValue | N1: Units | O1: Year(s) | P1: Transformation | Q1: Transformed Value | R1: Source | S1: Additional Details if Summary not clear | T1: Vulnerability Reduction | U1: DefaultS1 | V1: DefaultS2 | W1: DefaultS3 | X1: DefaultS4 | Y1: DefaultS5 | Z1: DefaultMin | AA1: DefaultMax | AB1: DefaultEVI | AC1: UserMin | AD1: UserS1 | AE1: UserS2 | AF1: UserS3 | AG1: UserS4 | AH1: UserS5 | AI1: UserMax | AJ1: UserEVI | AK1: UserEstEVI | AL1: IndicatorLikelihood
A2: 1 | B2: Weather & Climate | C2: Hazards | E2: 1 | K2: High Winds | L2: Average annual excess wind over the last five years (summing speeds on days during which the maximum recorded wind speed is greater than 20% higher than the 30 year average maximum wind speed for that month) averaged over all reference climate stations. | M2: 89.09 | N2: days/yr | O2: 1999-2003 | P2: LN(X) | Q2: 4.489647095 | R2: NOAA | S2: This indicator captures the likelihood of damage from frequent and severe wind that can affect forests, fan fires, create storm surges, dry soils, spread air pollution, and interact with other stressors. A high score could indicate shifts in weather patterns and climate, and could negatively affect a country’s resilience to other hazards. | T2: Natural Phenomenon where human actions cannot directly influence the issue, but resilience against effects could be built up in other areas which are amenable to improvement (e.g maintain/ improve forest cover). | U2: 5 | V2: 5.28 | W2: 5.56 | X2: 5.84 | Y2: 6.12 | Z2: 5 | AA2: 6.4 | AB2: 1 | AC2: 4 | AD2: 4 | AE2: 4.48 | AF2: 4.96 | AG2: 5.44 | AH2: 5.92 | AI2: 6.4 | AJ2: 3 | AK2: 6 | AL2: Possible
A3: 2 | B3: Weather & Climate | C3: Hazards | D3: 1 | E3: 1 | F3: 1 | G3: 1 | H3: 1 | I3: 1 | J3: 1 | K3: Dry Periods | L3: Average annual rainfall deficit (mm) over the past 5 years for all months with >20% lower rainfall than the 30 year monthly average, averaged over all reference climate stations. | M3: -1562 | N3: mm / station / yr | O3: 1999-2003 | P3: LN(|X|) | Q3: 7.35372233 | R3: NOAA GHCN | S3: This indicator captures not only the number of months with significantly lower rainfall, but also the strength of the deficit. Frequent and severe drought months could indicate shifts in weather patterns and climate, and could negatively affect a country’s resilience to other hazards (e.g. fires, water movements, ability of ecosystems to attenuate pollution). | T3: Natural Phenomenon where human actions cannot directly influence the issue, but resilience against effects could be built up in other areas which are amenable to improvement (e.g maintain/ improve forest cover, improve water management). | U3: 4 | V3: 4.5 | W3: 5 | X3: 5.5 | Y3: 6 | Z3: 4 | AA3: 6.5 | AB3: 7 | AC3: 4 | AD3: 4 | AE3: 4.5 | AF3: 5 | AG3: 5.5 | AH3: 6 | AI3: 6.5 | AJ3: 7 | AK3: 7 | AL3: Possible
A4: 3 | B4: Weather & Climate | C4: Hazards | D4: 1 | E4: 1 | F4: 1 | G4: 1 | H4: 1 | I4: 1 | J4: 1 | K4: Wet Periods | L4: Average annual excess rainfall (mm) over the past 5 years for all months with >20% higher rainfall than the 30 year monthly average, averaged over all reference climate stations. | M4: 33 | N4: mm/station/year | O4: 1999-2003 | P4: sqrt(X) | Q4: 5.744562647 | R4: NOAA GHCN | S4: This indicator captures not only the number of months with significantly higher rainfall, but also the amount of the excess. Frequent and severe wet months could indicate shifts in weather patterns and climate, and could negatively affect a country’s resilience to other hazards (e.g. water movements, ability of ecosystems to attenuate pollution) | T4: Natural Phenomenon where human actions cannot directly influence the issue, but resilience against effects could be built up in other areas which are amenable to improvement (e.g. maintain / improve forest cover; promote good landuse practices). | U4: 5 | V4: 7 | W4: 9 | X4: 11 | Y4: 13 | Z4: 5 | AA4: 15 | AB4: 2 | AC4: 5 | AD4: 5 | AE4: 7 | AF4: 9 | AG4: 11 | AH4: 13 | AI4: 15 | AJ4: 2 | AK4: 2 | AL4: Possible
A5: 4 | B5: Weather & Climate | C5: Hazards | D5: 1 | E5: 1 | F5: 1 | G5: 1 | H5: 1 | I5: 1 | J5: 1 | K5: Hot Periods | L5: Average annual excess heat (degrees Farenheit) over the past 5 years for all days more than 9F (5°C) hotter than the 30 year mean monthly maximum, averaged over all reference climate stations. | M5: 0 | N5: degrees/yr | O5: 1999-2003 | P5: LN(X+1) | Q5: 0 | R5: WMO | S5: This indicator is designed to capture stress on land surfaces and nearshore or shallow aquatic environments to periods of high temperatures that can affect productivity, oxygen levels, pollution, reproduction and symbiotic relationships and lead to mass mortality. Consequence: Regenerative ability of forests can be impaired in such cases. | T5: Natural Phenomenon where human actions cannot directly influence the issue, but resilience against effects could be built up in other areas which are amenable to improvement (e.g. maintain / improve forest cover; reduce other stresses on fragile ecosystems such as forests, steppes, wetlands and coral reefs) | U5: 3.5 | V5: 4 | W5: 4.5 | X5: 5 | Y5: 5.5 | Z5: 3.5 | AA5: 6 | AB5: 1 | AC5: 3.5 | AD5: 3.5 | AE5: 4 | AF5: 4.5 | AG5: 5 | AH5: 5.5 | AI5: 6 | AJ5: 1 | AK5: 1 | AL5: Possible
A6: 5 | B6: Weather & Climate | C6: Hazards | D6: 1 | E6: 1 | F6: 1 | G6: 1 | H6: 1 | I6: 1 | J6: 1 | K6: Cold Periods | L6: Average annual heat deficit (degrees) over the past 5 years for all days more than 5°C cooler than the 30 year mean monthly minimum, averaged over all reference climate stations. | M6: 0 | N6: degrees / yr | O6: 1999-2003 | P6: LN(X+1) | Q6: 0 | R6: WMO | S6: This indicator is designed to capture stress on land surfaces and nearshore or shallow aquatic environments to periods of low temperatures that can affect productivity, oxygen levels, pollution, reproduction and symbiotic relationships and lead to mass mortality. This indicator captures not only the number of days with significantly lower temperatures, but also the amount of the “heat deficit” | T6: This issue cannot be directly influenced by human actions, but resilience against effects could be built up in other areas which are amenable to improvement (e.g. maintain / improve forest cover; reduce other stresses on fragile ecosystems such as forests and steppes) | U6: 3.5 | V6: 4 | W6: 4.5 | X6: 5 | Y6: 5.5 | Z6: 3.5 | AA6: 6 | AB6: 1 | AC6: 3.5 | AD6: 3.5 | AE6: 4 | AF6: 4.5 | AG6: 5 | AH6: 5.5 | AI6: 6 | AJ6: 1 | AK6: 1 | AL6: Possible
A7: 6 | C7: Hazards | F7: 1 | K7: SST | L7: Average annual deviation in Sea Surface Temperatures (SST) in the last 5 years in relation to the 30 year monthly means (1961-1990) | M7: 3.908 | N7: degrees / yr | O7: Dec98-Nov03 | P7: LN(X) | Q7: 1.363025734 | R7: CRU | S7: This indicator captures vulnerability to fluctuations in productivity, fisheries, currents, eddies, ENSO, cyclones & storms, blooms and coral bleaching. The indicator captures the total amount of the anomalies in SST, either as excess or deficit (using absolute values). | T7: This issue cannot be directly influenced by human actions, but resilience against effects could be built up in other areas which are amenable to improvement (e.g. build coastal resilience by controlling pollution, types of developments and resource use; maintain / improve forest cover). | U7: 1.3 | V7: 1.6 | W7: 1.9 | X7: 2.2 | Y7: 2.5 | Z7: 1.3 | AA7: 2.8 | AB7: 1 | AC7: 1.3 | AD7: 1.3 | AE7: 1.6 | AF7: 1.9 | AG7: 2.2 | AH7: 2.5 | AI7: 2.8 | AJ7: 1 | AK7: 1 | AL7: Possible
A8: 7 | B8: Geology | C8: Hazards | D8: 1 | E8: 1 | F8: 1 | G8: 1 | H8: 1 | I8: 1 | J8: 1 | K8: Volcano | L8: Cumulative volcano risk as the weighted number of volcanoes with the potential for eruption greater than or equal to a Volcanic Explosively Index of 2 (VEI 2) within 100km of the country land boundary (divided by the area of land). | M8: 0 | N8: VEI Units / million sq km | O8: 2003 | P8: LN(X+1) | Q8: 0 | R8: NOAA NGCD | S8: This indicator captures the risk of damage to ecosystems from the physical, chemical and biological disturbances associated with volcanic eruptions. Because the risk associated with volcanoes varies according to size and type, the signal incorporates the number of volcanoes capable of affecting a country, and its potential for damage. | T8: This issue cannot be directly influenced by human actions, but resilience against effects could be built up in other areas which are amenable to improvement (e.g. maintain / improve forest cover; promote good landuse practices; create reserves) | U8: 2 | V8: 3 | W8: 4 | X8: 5 | Y8: 6 | Z8: 2 | AA8: 7 | AB8: 1 | AC8: 2 | AD8: 2 | AE8: 3 | AF8: 4 | AG8: 5 | AH8: 6 | AI8: 7 | AJ8: 1 | AK8: 1 | AL8: Possible
A9: 8 | B9: Geology | C9: Hazards | D9: 1 | E9: 1 | F9: 1 | G9: 1 | H9: 1 | I9: 1 | J9: 1 | K9: Earthquake | L9: Cumulative earthquake energy within 100km of country land boundaries measured as Local Magnitude (ML) ≥ 6.0 and occurring at a depth of less than or equal to fifteen kilometres (≤15km depth) over 5 years (divided by land area) | M9: 0 | N9: Number ML >= 6, Depth <= 15km | O9: 2001 | P9: None | Q9: 0 | R9: NOAA | S9: Vulnerability to habitat disturbance through movements of land, water and slides. This indicator captures the risks of damage to the environment from large-scale disturbances such as fluidisation of soils and muds, diversion of rivers and other water bodies, sunamis, slides, and direct damage to organisms associated with earth movements. | T9: This issue cannot be directly influenced by human actions, but resilience against effects could be built up in other areas which are amenable to improvement and which reduce the impacts of development activities (e.g. maintain / improve forest cover; promote good landuse practices). | U9: 1 | V9: 2 | W9: 3 | X9: 4 | Y9: 5 | Z9: 1 | AA9: 6 | AB9: 1 | AC9: 1 | AD9: 1 | AE9: 2 | AF9: 3 | AG9: 4 | AH9: 5 | AI9: 6 | AJ9: 1 | AK9: 1 | AL9: Possible
A10: 9 | B10: Geology | C10: Hazards | D10: 1 | E10: 1 | F10: 1 | G10: 1 | H10: 1 | I10: 1 | J10: 1 | K10: Tsunamis | L10: Number of tsunamis or storms surges with run-up greater than 2 metres above Mean High Water Spring tide (MHWS) per 1000km coastline since 1900 | M10: 1.117318436 | N10: Number since 1900 >2m run-up | O10: 2003 | P10: None | Q10: 1.117318436 | R10: NOAA | S10: This indicator captures the potential loss of shorelines, coastal ecosystems and resources, and loss of species due to catastrophic run up of seawater onto coastal lands. Countries with frequent and severe tsunamis are at risk of severe or permanent damage to biodiversity, productivity and the ability to recover from other stressors. | T10: This issue cannot be directly influenced by human actions, but resilience against effects could be built up in other areas which are amenable to improvement (e.g. maintain / improve coastal forest cover; careful design of coastal structures and developments; promote good landuse practices) | U10: 0 | V10: 3 | W10: 6 | X10: 9 | Y10: 12 | Z10: 0 | AA10: 15 | AB10: 2 | AC10: 0 | AD10: 0 | AE10: 3 | AF10: 6 | AG10: 9 | AH10: 12 | AI10: 15 | AJ10: 2 | AK10: 2
A11: 10 | B11: Geology | C11: Hazards | G11: 1 | I11: 1 | J11: 1 | K11: Slides | L11: Number of slides recorded in the last 5 years (EMDAT definitions), divided by land area | M11: 0 | N11: Slides / million sq km land | O11: 1996-2000 | P11: LN(X+1) | Q11: 0 | R11: EMDAT | S11: Vulnerability to habitat disturbance and persistence of ecosystems and species from catastrophic shifts in the land surface. The primary and cumulative effects of slides would be especially important if there are many endangered species, sensitive ecosystems, and interactions with on-going human impacts | T11: This issue cannot be directly influenced by human actions, but resilience against effects could be built up in other areas which are amenable to improvement (e.g. maintain / improve forest cover; promote good landuse practices) | U11: 0 | V11: 0.5 | W11: 1 | X11: 1.5 | Y11: 2 | Z11: 0 | AA11: 2.5 | AB11: 1 | AC11: 0 | AD11: 0 | AE11: 0.5 | AF11: 1 | AG11: 1.5 | AH11: 2 | AI11: 2.5 | AJ11: 1 | AK11: 1 | AL11: Rare
A12: 11 | B12: Geography | C12: Resistance | G12: 1 | I12: 1 | J12: 1 | K12: Land Area | L12: Total land area (km2) | M12: 10830 | N12: sq km | O12: 2001 | P12: LN(X) | Q12: 9.29007534 | R12: WRI | S12: This indicator captures the richness of habitat types and diversity, availability of refuges if damage is sustained or for protection, and species and habitat redundancy. It is generally considered that larger countries will have more options and the ‘critical mass’ required for ecological systems to persist and re-seed each other in the face of ecosystem stressors. | T12: This issue cannot be directly influenced by human actions, and is part of the inherent characteristics of a country. General environmental resilience could be built up by improving resource use; appropriate developments and increasing the area under reserves. | U12: 4 | V12: 6 | W12: 8 | X12: 10 | Y12: 12 | Z12: 4 | AA12: 14 | AB12: 4 | AC12: 4 | AD12: 4 | AE12: 6 | AF12: 8 | AG12: 10 | AH12: 12 | AI12: 14 | AJ12: 4 | AK12: 4 | AL12: Possible
A13: 12 | B13: Geography | C13: Resistance | F13: 1 | H13: 1 | J13: 1 | K13: Country Dispersion | L13: Ratio of length of borders (land and maritime) to total land area | M13: 82.64081256 | N13: km / 1000 sq km | O13: 2001-2002 | P13: LN(X) | Q13: 4.414503657 | R13: WRI 2000-2001, CIA 2002 | S13: This indicator captures the degree to which a country’s land area is fragmented and ‘thin’. Countries which are highly fragmented, comprised of many islands, or which have many peninsulas or land areas in thin strips are likely to be prone to more transboundary effects. | T13: This issue cannot be directly influenced by human actions, and is part of the inherent characteristics of a country. General environmental resilience could be built up by improving resource use; appropriate developments and increasing the area under reserves. | U13: 2 | V13: 3 | W13: 4 | X13: 5 | Y13: 6 | Z13: 2 | AA13: 7 | AB13: 4 | AC13: 2 | AD13: 2 | AE13: 3 | AF13: 4 | AG13: 5 | AH13: 6 | AI13: 7 | AJ13: 4 | AK13: 4 | AL13: Possible
A14: 13 | B14: Geography | C14: Resistance | F14: 1 | J14: 1 | K14: Isolation | L14: Distance to nearest continent (km) | M14: 640 | N14: km | O14: 2000 | P14: None | Q14: =M14 -> 640 | R14: Times Comprehensive World Atlas | S14: This indicator captures the proximity of a country to the nearest continent. Note that if a country is within a continent, this value is zero. Isolated countries may have a greater risk of loss of ecosystem types and species during periods of stress if they are far away from refuges and sources of recolonisation. | T14: This issue cannot be directly influenced by human actions, and is part of the inherent characteristics of a country. General environmental resilience could be built up by improving resource use; appropriate developments and increasing the area under reserves. | U14: 0 | V14: 50 | W14: 100 | X14: 400 | Y14: 800 | Z14: 0 | AA14: 1600 | AB14: 5 | AC14: 0 | AD14: 0 | AE14: 50 | AF14: 100 | AG14: 400 | AH14: 800 | AI14: 1600 | AJ14: 5 | AK14: 5 | AL14: Possible
A15: 14 | B15: Geography | C15: Resistance | G15: 1 | J15: 1 | K15: Relief | L15: Altitude range (highest point subtracted from the lowest point in country) | M15: 2256 | N15: m | O15: 2001 | P15: None | Q15: =M15 -> 2256 | R15: CIA | S15: This indicator examines the vulnerability of a country related to biodiversity of habitats and species and the potential for habitat disturbance through movements of water and slides. A country with a large altitude range is likely to have a greater variety of ecosystems, which in very high altitude areas, or very low ones (e.g. the Black Sea) leads to the formation of “endemic habitat types”. | T15: This issue cannot be directly influenced by human actions, and is part of the inherent characteristics of a country. General environmental resilience could be built up by improving resource use; appropriate developments and increasing the area under reserves. | U15: 1500 | V15: 3000 | W15: 4500 | X15: 6000 | Y15: 7000 | Z15: 1500 | AA15: 8000 | AB15: 2 | AC15: 1500 | AD15: 1500 | AE15: 3000 | AF15: 4500 | AG15: 6000 | AH15: 7000 | AI15: 8000 | AJ15: 2 | AK15: 2 | AL15: Possible
A16: 15 | B16: Geography | C16: Resistance | F16: 1 | J16: 1 | K16: Lowlands | L16: Percentage of land area less than or equal to 50m above sea level | M16: 100 | N16: % | O16: 2004 | P16: None | Q16: =M16 -> 100 | R16: Encarta Atlas | S16: This indicator focuses on the presence of lowlands in a country with implied impacts associated with pollution, ecosystem disturbance, flooding and coastal vulnerability. Areas of lowlands are those that will tend to be the first to flood, will tend to accumulate pollution that is mobilised by surface run-off, provide an important entry point (and extraction point) for groundwaters and if on the coasts of the sea or lakes may be subject to storm surges, tsunamis or sea level rise. They tend to be areas of high biodiversity and/or form critical habitats. | T16: This issue cannot be directly influenced by human actions, and is part of the inherent characteristics of a country. General environmental resilience could be built up by improving resource use; appropriate developments and increasing the area under reserves. | U16: 0 | V16: 15 | W16: 30 | X16: 45 | Y16: 60 | Z16: 0 | AA16: 75 | AB16: 7 | AC16: 0 | AD16: 0 | AE16: 15 | AF16: 30 | AG16: 45 | AH16: 60 | AI16: 75 | AJ16: 7 | AK16: 7 | AL16: Possible
A17: 16 | B17: Geography | C17: Resistance | F17: 1 | H17: 1 | K17: Borders | L17: Number of land and sea borders (including EEZ) shared with other countries | M17: 8 | N17: number | O17: 1999 | P17: None | Q17: =M17 -> 8 | R17: CIA, Encarta | S17: This indicator captures the risk to terrestrial and aquatic ecosystems from transboundary risks including species introductions, lack of control of effects from neighbouring countries, lack of control of straddling stocks of resources, and uncontrolled migrations of humans (e.g. refugees). We consider that the greater the number of different jurisdictions bordering a country by land or sea, the greater the risks of neighbour effects – that is risks to the environment caused by the policies and behaviours of other countries. | T17: This issue can be directly influenced by human actions though agreements designed to reduce transboundary risks such as pollution, movements of migratory species and use of shared resources. | U17: 0 | V17: 2 | W17: 4 | X17: 6 | Y17: 8 | Z17: 0 | AA17: 10 | AB17: 6 | AC17: 0 | AD17: 0 | AE17: 2 | AF17: 4 | AG17: 6 | AH17: 8 | AI17: 10 | AJ17: 6 | AK17: 6 | AL17: Possible
A18: 17 | B18: Resources & services | C18: Damage | J18: 1 | K18: Ecosystem Imbalance | L18: Ecological Imbalance as weighted average change in trophic level since fisheries began (for trophic level slice ≤3.35) | M18: -0.0343 | P18: |X| | Q18: =ABS(M18) -> 0.0343 | R18: UBC | S18: This indicator captures the risk of ecosystem stress, loss of diversity, damage to the trophic structure of ecosystems, and loss of balance. It focuses on the risk to aquatic ecosystems associated with shifting the natural relationships, diversity and energy-flows within and among ecosystems. Although fisheries data are used, the indicator is more generally concerned with the downstream | T18: This issue can be directly influenced by human actions though the adoption of ecosystem approaches to management of aquatic and terrestrial areas, and the use of their resources. | U18: 0 | V18: 0.02 | W18: 0.04 | X18: 0.06 | Y18: 0.08 | Z18: 0 | AA18: 0.1 | AB18: 3 | AC18: 0 | AD18: 0 | AE18: 0.02 | AF18: 0.04 | AG18: 0.06 | AH18: 0.08 | AI18: 0.1 | AJ18: 3 | AK18: 3 | AL18: Possible
A19: 18 | B19: Resources & services | C19: Hazards | F19: 1 | G19: 1 | K19: Environmental Openess | L19: Average annual USD freight imports over the past 5 years by any means per km2 land area | M19: 367.867036 | N19: USD Thousands / sq km land | O19: 1996-2000 | P19: LN(X) | Q19: =LN(M19) -> 5.907721558 | R19: WRI | S19: This indicator captures the risk of damage to a country through the importation of foreign materials (physical, chemical and biological) by land, air or sea through the large volumes of freight that move around the globe annually. Countries with large amounts of freight moving into them are considered more at risk of inadvertent introductions of diseases, species and genetically modified organisms, than those with lower levels of freight movements. Freight imports may also be a mechanism for the introduction of pollution risks not normally found in a country – e.g. the import of radioactive substances, oil, chemicals. | T19: This issue can directly be influenced by quarantine control of freight movements and limiting or eliminating waste trading. Mechanisms could be put in place to contain accidental introductions where possible. General resilience building through management of rare and endangered organisms and establishing more reserves could also be undertaken. | U19: 1 | V19: 1.5 | W19: 2 | X19: 2.5 | Y19: 3 | Z19: 1 | AA19: 3.5 | AB19: 7 | AC19: 1 | AD19: 1 | AE19: 1.5 | AF19: 2 | AG19: 2.5 | AH19: 3 | AI19: 3.5 | AJ19: 7 | AK19: 7 | AL19: Possible
A20: 19 | B20: Resources & services | C20: Resistance | H20: 1 | J20: 1 | K20: Migrations | L20: Number of known species that migrate outside the territorial area at any time during their life spans (including land and all aquatic species) / area of land | M20: 2.216066482 | N20: Spp / 1000 sq km land | O20: 2002 | P20: LN(X+1) | Q20: =LN(M20+1) -> 1.168159023 | R20: GROMS | S20: This indicator focuses of species which pass outside of the control of the country and which during that time may be affected by actions of surrounding countries, or distant nations utilising them as a resource. It focuses on biodiversity, resilience and persistence of species with large variances in population numbers and/or that are susceptible to local extinctions. | T20: This issue can be influenced through bilateral and multilateral treaties designed to reduce transboundary risks such as pollution, movements of migratory species and use of shared resources. General resilience building through management of rare and endangered organisms and establishing more reserves could also be undertaken. | U20: 1 | V20: 1.5 | W20: 2 | X20: 2.5 | Y20: 3 | Z20: 1 | AA20: 3.5 | AB20: 2 | AC20: 1 | AD20: 1 | AE20: 1.5 | AF20: 2 | AG20: 2.5 | AH20: 3 | AI20: 3.5 | AJ20: 3 | AK20: 3 | AL20: Possible
A21: 20 | B21: Resources & services | C21: Resistance | H21: 1 | J21: 1 | K21: Endemic Species | L21: Number of known endemic species per million square kilometre land area | M21: 92243.76731 | N21: Spp / 1,000,000 sq km land | O21: 2000-2001 | P21: LN(X+1) | Q21: =LN(M21+1) -> 11.43220084 | R21: WRI | S21: This indicator focuses biodiversity and the risk of losing unique species. The more endemic species a country has, the more vulnerable it is because localised extinction cannot be re-supplied from elsewhere by natural or augmented recolonisation. Losses of key species can affect ecosystem function and the goods and services they provide. | T21: This issue can be influenced through identification and preservation of species and habitats unique to a country. General resilience building could be achieved through creating more reserves in terrestrial and aquatic habitats. | U21: 0 | V21: 2 | W21: 4 | X21: 6 | Y21: 8 | Z21: 0 | AA21: 10 | AB21: 7 | AC21: 0 | AD21: 0 | AE21: 2 | AF21: 4 | AG21: 6 | AH21: 8 | AI21: 10 | AJ21: 7 | AK21: 7 | AL21: Possible
A22: 21 | B22: Resources & services | C22: Damage | H22: 1 | J22: 1 | K22: Introductions of Species | L22: Number of introduced species per 1000 square kilometre of land area | M22: 0.7386888273 | N22: Spp / 1,000 sq km land | O22: 2002 | P22: LN(X+1) | Q22: =LN(M22+1) -> 0.5531312817 | R22: FAO | S22: This indicator captures past species introductions to a country with implied impacts on biodiversity and ecosystem integrity. This may include impacts at the levels of populations, genetics, species and ecosystems through complex ecological interactions. | T22: This issue is difficult to rectify once introductions have occurred and exotic species have become established. This issue can directly be influenced by quarantine control of freight movements and mechanisms could be put in place to contain accidental introductions where possible. General resilience building through management of rare and endangered organisms and establishing more reserves. | U22: 0 | V22: 1 | W22: 1.5 | X22: 2 | Y22: 2.5 | Z22: 0 | AA22: 3 | AB22: 2 | AC22: 0 | AD22: 0 | AE22: 1 | AF22: 1.5 | AG22: 2 | AH22: 2.5 | AI22: 3 | AJ22: 2 | AK22: 2 | AL22: Possible
A23: 22 | B23: Resources & services | C23: Damage | H23: 1 | J23: 1 | K23: Endangered Species | L23: Number of endangered and vulnerable species per 1000 sq km land area (IUCN definitions) | M23: 22.16066482 | N23: Spp / 1,000 sq km land | O23: 2000 | P23: None | Q23: =M23 -> 22.16066482 | R23: IUCN | S23: This indicator focuses on those species that have become endangered or threatened in a country with implied impacts on biodiversity and ecosystem integrity. These are the species most likely to next become extinct, and may already be resulting, by their reduced numbers, in impacts at the levels of populations, genetics, species and ecosystems through complex ecological interactions. | T23: This issue can be influenced through identification and preservation of species and habitats under threat in a country. General resilience building could be achieved through reducing pressure on threatened environments and species and by creating more reserves in terrestrial and aquatic habitats. | U23: 0 | V23: 1 | W23: 2 | X23: 3 | Y23: 4 | Z23: 0 | AA23: 5 | AB23: 7 | AC23: 0 | AD23: 0 | AE23: 1 | AF23: 2 | AG23: 3 | AH23: 4 | AI23: 5 | AJ23: 7 | AK23: 7 | AL23: Possible
A24: 23 | B24: Resources & services | C24: Damage | H24: 1 | J24: 1 | K24: Extinctions of Species | L24: Number of species known to have become extinct since 1900 per 1000 sq km land area (IUCN definitions). | M24: 0.7386888273 | N24: Spp / 1,000 sq km land | O24: 2000 | P24: None | Q24: =M24 -> 0.7386888273 | R24: IUCN | S24: This indicator focuses on those species that have become extinct in a country with implied impacts on biodiversity and ecosystem integrity. The loss of these species has resulted in a loss of biodiversity, and may also have resulted in impacts on ecosystem structure and function through complex ecological interactions. | T24: Extinctions is already underway. Actions to be taken have to do with preservation of the endangered organisms and habitats under threat in a country. General resilience building could also be achieved through creating more reserves in terrestrial and aquatic habitats. | U24: 0 | V24: 0.1 | W24: 0.2 | X24: 0.3 | Y24: 0.4 | Z24: 0 | AA24: 0.5 | AB24: 7 | AC24: 0 | AD24: 0 | AE24: 0.1 | AF24: 0.2 | AG24: 0.3 | AH24: 0.4 | AI24: 0.5 | AJ24: 7 | AK24: 7 | AL24: Possible
A25: 24 | B25: Resources & services | C25: Damage | I25: 1 | J25: 1 | K25: Vegetation Cover (%) | L25: Percentage of natural and regrowth vegetation cover remaining (include forests, wetlands, prairies, tundra, desert and alpine associations). | M25: 35.6 | N25: % of original cover | O25: 1996 | P25: -X | Q25: =M25 -> 35.6 | R25: WRI | S25: This indicator focuses on the loss of natural vegetation cover in a country with implied impacts on biodiversity and ecosystem integrity. Losing natural vegetation has resulted in a loss of biodiversity, and have maybe resulted in impacts on ecosystem structure and function through complex ecological interactions. | T25: The first action will be to prevent further losses of whatever natural vegetation cover remains in a country. General resilience building could also be achieved through rehabilitation of degraded habitats, allowing areas to regenerate, better land use and creating more reserves in terrestrial habitats. | U25: -80 | V25: -60 | W25: -40 | X25: -20 | Y25: -10 | Z25: -80 | AA25: 0 | AB25: 4 | AC25: -80 | AD25: -80 | AE25: -60 | AF25: -40 | AG25: -20 | AH25: -10 | AI25: 0 | AJ25: 4 | AK25: 4 | AL25: Possible
A26: 25 | B26: Resources & services | C26: Hazards | I26: 1 | J26: 1 | K26: Loss of Vegetation Cover (%) | L26: Net percentage change in natural vegetation cover over the last five years | M26: -7.45 | N26: % change (-ve = loss) | O26: 1995-2000 | P26: |X| | Q26: =ABS(M26) -> 7.45 | R26: WRI | S26: This measures the rate of loss or gain of natural vegetation cover in countries. It focuses on biodiversity, ecosystem resilience, the capacity of a country to attenuate pollution, prevention of soil loss and on-going soil development, reduction of runoff, recharging of ground waters and soil formation. | T26: The first action will be to prevent further losses of whatever natural vegetation cover remains in a country. General resilience building could also be achieved through rehabilitation of degraded habitats, allowing areas to regenerate, better landuse and creating more reserves in terrestrial habitats. | U26: 0 | V26: 0.4 | W26: 0.8 | X26: 1.2 | Y26: 1.6 | Z26: 0 | AA26: 2 | AB26: 7 | AC26: 0 | AD26: 0 | AE26: 0.4 | AF26: 0.8 | AG26: 1.2 | AH26: 1.6 | AI26: 2 | AJ26: 7 | AK26: 7 | AL26: Possible
A27: 26 | C27: Damage | G27: 1 | J27: 1 | K27: Habitat Fragmentation (Roads) | L27: Total length of all roads in a country divided by land area | M27: 1.754385965 | N27: km / sq km | O27: 1999 | P27: LN(X+1) | Q27: 1.013194538 | R27: World Bank | S27: This is a proxy measure for pressure on ecosystems resulting from fragmentation into discontinuous pieces. It also relates to habitat disturbance and degradation. | T27: Mecanisms that reducing fragmentation of land by maximising use of uniterrupted space in non-urban areas for road planning. General resilience building could also be achieved through improvements in related issues, such as rehabilitation of degraded habitats, allowing deforested areas to regenerate, and creating more reserves in terrestrial habitats. | U27: 0.2 | V27: 0.4 | W27: 0.6 | X27: 0.8 | Y27: 1 | Z27: 0.2 | AA27: 1.2 | AB27: 6 | AC27: 0.2 | AD27: 0.2 | AE27: 0.4 | AF27: 0.6 | AG27: 0.8 | AH27: 1 | AI27: 1.2 | AJ27: 6 | AK27: 6 | AL27: Possible
A28: 27 | B28: Resources & services | C28: Damage | G28: 1 | K28: Degradation (%) | L28: Percent of land area that is either severely or very severely degraded (FAO/AGL Terrastat definitions) | M28: 101.5697138 | N28: % | O28: 2000 | P28: None | Q28: =M28 -> 101.5697138 | R28: FAO / AGL | S28: This indicator captures the status of loss of ecosystems in a country and highlights the breakdown of ecosystems which leads to decreasing iodiversity, soil quality, resilience against natural events and the assimilative capacity of the environment. | T28: Mechanisms destroying the environment should be stopped and punished. Programmes for rehabilitation and/or allowing natural regeneration could be put in place. General resilience building could also be achieved through improvements in land use and other related issues, such as creating more reserves in terrestrial habitats. | U28: 5 | V28: 10 | W28: 15 | X28: 20 | Y28: 25 | Z28: 5 | AA28: 50 | AB28: 7 | AC28: 5 | AD28: 5 | AE28: 10 | AF28: 15 | AG28: 20 | AH28: 25 | AI28: 50 | AJ28: 7 | AK28: 7 | AL28: Possible
A29: 28 | B29: Resources & services | C29: Hazards | E29: 1 | G29: 1 | J29: 1 | K29: Terrestrial Reserves (%) | L29: Percent of terrestrial land area legally set aside as no take reserves | M29: 0.1 | N29: % of land area | O29: 1999 | P29: -X | Q29: =-M29 -> -0.1 | R29: WCMC, WRI | S29: This indicator captures the increase in resilience, function of pollution attenuation, groundwater recharge, limits to losses of biodiversity and refuges afforded by the presence of adequate terrestrial reserves (including aquatic ecosystems located within the land area) in a country. Reserves may be one of the few ways managers could off-set some other environmental damage and build resilience against natural events that can damage the environmental support system. | T29: Setting aside reserves of 20% of the land area is probably the most powerful action that could be taken to build resilience against all other pressures on the environment. Terrestrial reserves can be used as water catchment areas. | U29: -20 | V29: -15 | W29: -10 | X29: -5 | Y29: 0 | Z29: -20 | AA29: 0 | AB29: 7 | AC29: -20 | AD29: -20 | AE29: -15 | AF29: -10 | AG29: -5 | AH29: 0 | AI29: 0 | AJ29: 7 | AK29: 7 | AL29: Possible
A30: 29 | B30: Resources & services | C30: Hazards | F30: 1 | H30: 1 | J30: 1 | K30: Marine Reserves (%) | L30: Percentage of continental shelf legally designated as marine protected areas (MPAs) | M30: 15.24132477 | N30: % | O30: 1999 | P30: -X | Q30: =-M30 -> -15.24132477 | R30: WCMC (MPAs), WRI (Shelf) | S30: This indicator captures the increase in resilience, function of pollution attenuation and fisheries production, limits to losses of biodiversity and refuges afforded by the presence of adequate marine reserves in a country and it also focuses on areas with the most intact marine environments and the level of environmental management. Reserves may be one of the few ways managers could off-set some other environmental damage and build resilience against natural events that can damage the environmental support system. | T30: Setting aside reserves of 20% of the marine area is probably the most powerful action that could be taken to build resilience against all other pressures on the environment. | U30: -20 | V30: -15 | W30: -10 | X30: -5 | Y30: 0 | Z30: -20 | AA30: 0 | AB30: 2 | AC30: -20 | AD30: -20 | AE30: -15 | AF30: -10 | AG30: -5 | AH30: 0 | AI30: 0 | AJ30: 2 | AK30: 2 | AL30: Possible
A31: 30 | B31: Resources & services | C31: Hazards | I31: 1 | K31: Intensive Farming | L31: Annual tonnage of intensively farmed animal products (includes aquaculture, pigs, poultry) produced over the last five years per square kilometre land area. | M31: 1398.090489 | N31: t / sq km / yr | O31: 1996-2000 | P31: LN(X+1) | Q31: =LN(M31+1) -> 7.243577654 | R31: FAO | S31: This indicator captures the risk of pollution, eutrophication, ecosystem loss or damage and the risk of diseases and plagues. It focuses on lands being used for intensive agriculture, which we define as those in which the wastes produced over the land are in excess of the ability of that same land area to attenuate them. Intensive farming includes the farming of poultry, pigs, aquaculture, and some farming of cattle and other animals where kept in feed lots and involves clearing of land, feeding, heavy use of pesticides and other medications and a concentrated production of wastes. | T31: Risks related to use of medicines, pesticides and other chemicals and production of concentrated wastes. Mechanisms for reducing their use and/or impacts on the environment through better husbandry and treatment of wastes would reduce risks associated with this issue | U31: 2 | V31: 3 | W31: 4 | X31: 5 | Y31: 6 | Z31: 2 | AA31: 7 | AB31: 7 | AC31: 2 | AD31: 2 | AE31: 3 | AF31: 4 | AG31: 5 | AH31: 6 | AI31: 7 | AJ31: 7 | AK31: 7 | AL31: Possible
A32: 31 | B32: Resources & services | C32: Hazards | D32: 1 | E32: 1 | I32: 1 | J32: 1 | K32: Fertilisers | L32: Average annual intensity of fertiliser use over the total land area over the last 5 years. | M32: 2150.507849 | N32: kg / sq km / yr | O32: 1995-1997 | P32: LN(X+1) | Q32: =LN(M32+1) -> 7.6739242 | R32: WRI, OECD | S32: This indicator captures the risk to terrestrial, aquatic ecosystems and ground waters from the use of chemical NPK fertilisers. This indicator is a measure of damage to ecosystems, water and soil quality, coral reefs and other sensitive organisms through eutrophication, pollution, soil damage and salinisation. | T32: Systems of agriculture that do not require large applications of NPK fertilisers should be explored, this might include mechanisms for recycling organic wastes. General resilience building would be through reducing other pressures on the receiving environments that could interact with large inputs of fertilisers. | U32: 4 | V32: 6 | W32: 7 | X32: 8 | Y32: 9 | Z32: 4 | AA32: 10 | AB32: 4 | AC32: 4 | AD32: 4 | AE32: 6 | AF32: 7 | AG32: 8 | AH32: 9 | AI32: 10 | AJ32: 4 | AK32: 4 | AL32: Possible
A33: 32 | B33: Resources & services | C33: Hazards | D33: 1 | E33: 1 | G33: 1 | I33: 1 | J33: 1 | K33: Pesticides | L33: Average annual pesticides used as kg/km2/year over total land area over last 5 years. | M33: 0 | N33: kg / sq km / yr | O33: 1996 | P33: LN(X+1) | Q33: 0 | R33: WRI, OECD | S33: This indicator captures the risk to terrestrial, aquatic ecosystems and ground waters from heavy use of pesticides. The indicator focuses on damage and pollution of ecosystems, soil damage, damage to reproductive systems of organisms, loss of species, and damage to aquatic organisms including fisheries and coral reefs. | T33: Systems of agriculture that do not require large applications of NPK fertilisers should be explored, this might include mechanisms for recycling organic wastes. General resilience building would be through reducing other pressures on the receiving environments that could interact with large inputs of fertilisers. | U33: 0 | V33: 0.8 | W33: 1.6 | X33: 2.4 | Y33: 3.2 | Z33: 0 | AA33: 4 | AB33: 1 | AC33: 0 | AD33: 0 | AE33: 0.5 | AF33: 1 | AG33: 2 | AH33: 3 | AI33: 4 | AJ33: 1 | AK33: 1 | AL33: Possible
A34: 33 | B34: Resources & services | C34: Hazards | I34: 1 | J34: 1 | K34: Biotechnology | L34: Cumulative number of deliberate field trials of genetically modified organisms conducted in the country since 1986 | M34: 0 | N34: Total number trials | O34: 2000 | P34: None | Q34: =M34 -> 0 | R34: ISAAA, BINAS, OECD | S34: This indicator captures the risk to genetic diversity, genetic pollution and unpredictable ecosystem effects of introducing incompletely tested and/or unpredictable bioengineered organisms into the environment. This includes new toxin-producing organisms, terminators (the use of deliberately sterile organisms is often used as a biological control method for pests) or organisms with new ecological behaviours. This indicator operates under the precautionary principle. Precautionary principle: A strategy to cope with possible risks where scientific understanding is yet incomplete. | T34: Deliberate introductions of organisms that may have unpredictable interactions with the environment should not be undertaken. Laboratory tests are not reliable enough for field tests as the environment makes the consequences unpredicatble. Each GMO introduced into the environment carries a similar risk to an introduced species. | U34: 0 | V34: 5 | W34: 10 | X34: 15 | Y34: 20 | Z34: 0 | AA34: 50 | AB34: 1 | AC34: 0 | AD34: 0 | AE34: 5 | AF34: 10 | AG34: 15 | AH34: 20 | AI34: 50 | AJ34: 1 | AK34: 1 | AL34: Possible
A35: 34 | B35: Resources & services | C35: Hazards | F35: 1 | H35: 1 | K35: Productivity Overfishing | L35: Average ratio of productivity : fisheries catch over the last 5 years | M35: 496338.0741 | N35: tC / sq km / yr : t fish / sq km / yr | O35: 1994-1998 | P35: LN(X) | Q35: =LN(M35) -> 13.11501257 | R35: FAO, UBC | S35: This indicator captures the risk of damage to fisheries stocks by examining rates of extraction in relation to the potential for the environment to replenish those stocks (productivity). This indicator should be read in combination with Indicator 39 which focuses on catch per human effort. | T35: Fisheries policy that keeps catches within overall sustainable limits of the country’s productivity. General resilience can be built by creating marine reserves. | U35: 10 | V35: 11 | W35: 12 | X35: 13 | Y35: 14 | Z35: 10 | AA35: 15 | AB35: 5 | AC35: 10 | AD35: 10 | AE35: 11 | AF35: 12 | AG35: 13 | AH35: 14 | AI35: 15 | AJ35: 5 | AK35: 5 | AL35: Possible
A36: 35 | B36: Resources & services | C36: Hazards | F36: 1 | H36: 1 | K36: Fishing Effort | L36: Average annual number of fishers per kilometre of coastline over the last 5 years | M36: 9.166480447 | N36: fishers / yr / km coast | O36: 1994-1996 | P36: LN(X+1) | Q36: =LN(M36+1) -> 2.319096078 | R36: WRI | S36: This indicator captures the risk of damage to fisheries stocks through overcapacity of human effort. In this indicator we have tried to capture all fishers, not just the commercial fleet. This indicator should be read in combination with Indicator 24, which focuses on ecological overfishing. | T36: Fisheries policy that keeps catches within overall sustainable limits of the country’s productivity. General resilience can be built by creating marine reserves. | U36: 2 | V36: 2.5 | W36: 3 | X36: 3.5 | Y36: 4 | Z36: 2 | AA36: 4.5 | AB36: 2 | AC36: 2 | AD36: 2 | AE36: 2.5 | AF36: 3 | AG36: 3.5 | AH36: 4 | AI36: 4.5 | AJ36: 2 | AK36: 2 | AL36: Possible
A37: 36 | B37: Resources & services | C37: Hazards | E37: 1 | G37: 1 | J37: 1 | K37: Renewable Water | L37: Average annual water usage as percentage of renewable water resources over the last 5 years | M37: 9.574468085 | N37: % | O37: 1993 | P37: None | Q37: =M37 -> 9.574468085 | R37: WRI 2000-2001 | S37: This indicator captures the risk to terrestrial environments, aquatic ecosystems and ground waters from over-extraction of freshwater resources. It focuses on sustainable use of surface free water and groundwater and damage through salinisation, extraction of functionally non-renewable groundwater, and damage to rivers, lakes and other habitats. | T37: Policies that ensure extractions of water from the environment are within sustainable limits. Water should be taken from renewable sources and used within limits so that other elements of the environment can function. General resilience can be built by managing watersheds, wetlands, groundwater and forests which are important elements of how ecosystems interact with the hydrological cycle. | U37: 10 | V37: 20 | W37: 40 | X37: 60 | Y37: 80 | Z37: 10 | AA37: 100 | AB37: 1 | AC37: 10 | AD37: 10 | AE37: 20 | AF37: 40 | AG37: 60 | AH37: 80 | AI37: 100 | AJ37: 1 | AK37: 1 | AL37: Possible
A38: 37 | B38: Resources & services | C38: Hazards | D38: 1 | E38: 1 | G38: 1 | J38: 1 | K38: Sulphur Dioxide Emissions | L38: Average annual SO2 emissions over the last 5 years | M38: 9.335180055 | N38: t / sq km / yr | O38: 1995 | P38: LN(X+1) | Q38: =LN(M38+1) -> 2.335553615 | R38: GEO 3 | S38: This indicator captures the risk to ecosystem health from air pollution, including its downstream effects. High rates of emissions of gases from industry present risks to all aspects of the environment through diffuse pathways, including deposition by rain. | T38: Policies that ensure managed emissions or clean industry should be examined and implemented. General resilience can be built by maintaining and restoring wetlands, forests and other ecosystems that encourage biodegradation of industrial wastes. | U38: 0.25 | V38: 0.6 | W38: 0.95 | X38: 1.3 | Y38: 1.65 | Z38: 0.25 | AA38: 2 | AB38: 6 | AC38: 0.25 | AD38: 0.25 | AE38: 0.6 | AF38: 0.95 | AG38: 1.3 | AH38: 1.65 | AI38: 2 | AJ38: 6 | AK38: 6 | AL38: Possible
A39: 38 | B39: Resources & services | C39: Hazards | D39: 1 | E39: 1 | G39: 1 | K39: Waste Production | L39: Average annual net amount of generated and imported toxic, hazardous and municipal wastes per square kilometre land area over the last 5 years | N39: t/km2/yr | O39: 1996-2000 | P39: LN(X+1) | Q39: =IF(M39="ND","ND",LN(M39+1)) -> 0 | R39: UNEP 1998, EEA 2001, MZPSR | S39: This indicator captures the risk to terrestrial, aquatic ecosystems and ground waters from toxic and municipal wastes. All such wastes need a suitable area of land or volume of water for their eventual attenuation. | T39: Policies that ensure wastes are minimised and used efficiently through recycling. Waste importation should be reduced or stopped. General resilience can be built by maintaining and restoring forests and other ecosystems that encourage biodegradation of wastes. | U39: 1 | V39: 2 | W39: 3 | X39: 4 | Y39: 5 | Z39: 1 | AA39: 6 | AB39: 1 | AC39: 1 | AD39: 1 | AE39: 2 | AF39: 3 | AG39: 4 | AH39: 5 | AI39: 6 | AJ39: 1 | AK39: 1 | AL39: Possible
A40: 39 | B40: Resources & services | C40: Hazards | D40: 1 | E40: 1 | G40: 1 | K40: Waste Treatment | L40: Mean annual percent of hazardous, toxic and municipal waste effectively managed and treated over the past 5 years. | M40: 0 | N40: % | O40: ND | P40: None | Q40: =M40 -> 0 | R40: ND | S40: This indicator captures the proportion of wastes rendered less harmful. Vulnerability is in relation to risk to terrestrial, aquatic ecosystems and ground waters from toxic and municipal wastes and how they are treated. | T40: Policies that ensure wastes are minimised and used efficiently through recycling. Waste importation should be reduced or stopped. General resilience can be built by maintaining and restoring forests and other ecosystems that encourage biodegradation of wastes. | U40: -100 | V40: -80 | W40: -60 | X40: -50 | Y40: -40 | Z40: -100 | AA40: -30 | AB40: 7 | AC40: -100 | AD40: -100 | AE40: -80 | AF40: -60 | AG40: -50 | AH40: -40 | AI40: -30 | AJ40: 7 | AK40: 7 | AL40: Possible
A41: 40 | B41: Resources & services | C41: Hazards | E41: 1 | G41: 1 | K41: Industry | L41: Average annual use of electricity for industry over the last 5 years per square kilometre of land | M41: 14.33933518 | N41: toe / km2 | O41: 1997 | P41: None | Q41: =M41 -> 14.33933518 | R41: WRI | S41: This indicator captures all major potential chemical and other industrial polluters that could cause significant environmental damage from accidents and diffuse pollution, including acid rain, not normally recorded as part of waste streams. It also captures electricity generation and/or use specifically for purposes of industry, which in itself has ecological consequences. This indicator is used to take into account accidents such as the Bhopal chemical explosion in India, as well as incidents such as the Chernobyl and more recently the Japanese nuclear disaster. | T41: Policies that ensure clean industry with rapid and effective response to accidents, waste minimisation and recycling. General resilience can be built by maintaining and restoring forests and other ecosystems that encourage biodegradation of wastes. | U41: 5 | V41: 10 | W41: 20 | X41: 50 | Y41: 100 | Z41: 5 | AA41: 200 | AB41: 3 | AC41: 5 | AD41: 5 | AE41: 10 | AF41: 20 | AG41: 50 | AH41: 100 | AI41: 200 | AJ41: 3 | AK41: 3 | AL41: Possible
A42: 41 | B42: Resources & services | C42: Hazards | F42: 1 | H42: 1 | J42: 1 | K42: Spills | L42: Total number of spills of oil and hazardous substances greater than 1000 litres on land, in rivers or within territorial waters per million km coast during the last five years | M42: 0 | N42: Number of spills / million km coasts | O42: 1996-2000 | P42: None | Q42: 0 | R42: ITOPF 2002 | S42: This indicator captures the risk to marine, estuarine, riverine, lake, ground water and terrestrial ecosystems from spills of hydrocarbons and other toxic fluids. Only spills greater than 1,000 litres are included. | T42: Policies that promote safe handing of hazardous substances and ensure rapid and effective response to accidental spills. General resilience can be built by maintaining and restoring coasts, wetlands and forests as well as other ecosystems that encourage biodegradation of wastes. | U42: 0 | V42: 50 | W42: 100 | X42: 150 | Y42: 200 | Z42: 0 | AA42: 250 | AB42: 1 | AC42: 0 | AD42: 0 | AE42: 50 | AF42: 100 | AG42: 150 | AH42: 200 | AI42: 250 | AJ42: 1 | AK42: 4 | AL42: Almost Certain
A43: 42 | B43: Resources & services | C43: Hazards | F43: 1 | G43: 1 | J43: 1 | K43: Mining | L43: Average annual mining production (include all surface and subsurface mining and quarrying) per km2 of land area over the past 5 years. | M43: 957.0655845 | N43: t / km2 / yr | O43: 1996-2000 | P43: LN(X+1) | Q43: =LN(M43+1) -> 6.864916235 | R43: USGS, World Nuclear Assoc, Diamond Registry, Salt Inst | S43: This indicator captures the risk to terrestrial, aquatic ecosystems and ground waters from the effects of ecosystem disturbance, accidents, oil spills and toxic leachates, and processing from mining of all kinds. All disturbance can lead to vulnerability to other processes, human and natural, and wastes need a suitable area of land or volume of water for their eventual attenuation or long term deposition. High levels of mining activity present risks to all aspects of the environment. | T43: Policies that ensure whole life management of mines, including waste minimisation, stablisation and rehabilitation. Waste importation through bringing of ores should be minimised. General resilience can be built by maintaining and restoring forests and other ecosystems that encourage biodegradation of wastes. | U43: 1 | V43: 2 | W43: 3 | X43: 4 | Y43: 5 | Z43: 1 | AA43: 6 | AB43: 7 | AC43: 1 | AD43: 1 | AE43: 2 | AF43: 3 | AG43: 4 | AH43: 5 | AI43: 6 | AJ43: 7 | AK43: 7 | AL43: Possible
A44: 43 | B44: Resources & services | C44: Hazards | D44: 1 | E44: 1 | G44: 1 | K44: Sanitation | L44: Density of population without access to safe sanitation (WHO definitions) | M44: 27.07478855 | N44: people / km2 | O44: 1990-1997 | P44: LN(X+1) | Q44: =LN(M44+1) -> 3.334871969 | R44: WRI | S44: This indicator is a proxy measure for how human waste is treated before it enters the environment. We are taking safe sanitation as an indication of at least some pre-treatment of sewage before it enters stream, groundwater recharge, coastal and land areas. | T44: Policies that ensure human wastes are treated to secondary or higher levels before being released to the environment (Some are not to be treated as such if they do not have a big impact on the ecosystem). General resilience can be built by maintaining and restoring forests and other ecosystems that encourage biodegradation of wastes. | U44: 1.5 | V44: 2 | W44: 2.5 | X44: 3 | Y44: 3.5 | Z44: 1.5 | AA44: 4 | AB44: 5 | AC44: 1.5 | AD44: 1.5 | AE44: 2 | AF44: 2.5 | AG44: 3 | AH44: 3.5 | AI44: 4 | AJ44: 5 | AK44: 5 | AL44: Possible
A45: 44 | B45: Resources & services | C45: Hazards | G45: 1 | K45: Vehicles | L45: Number of vehicles per square kilometre of land area (most recent data) | M45: 10.0915121 | N45: vehicles / km2 | P45: LN(X+1) | Q45: =LN(M45+1) -> 2.40618014 | R45: WRI 2000-2001 | S45: This indicator captures the risk to terrestrial ecosystems in the form of habitat damage, habitat fragmentation, loss of biodiversity, pollution hazardous wastes and industries, including air and lead pollution on land and in waterways. | T45: Policies that promote public and clean transport options and good waste management, including efficient use of wastes through recycling. General resilience can be built by maintaining and restoring forests and creating reserves. | U45: 1 | V45: 1.5 | W45: 2 | X45: 2.5 | Y45: 3 | Z45: 1 | AA45: 3.5 | AB45: 4 | AC45: 1 | AD45: 1 | AE45: 1.5 | AF45: 2 | AG45: 2.5 | AH45: 3 | AI45: 3.5 | AJ45: 4 | AK45: 4 | AL45: Possible
A46: 45 | B46: Human populations | C46: Damage | D46: 1 | E46: 1 | F46: 1 | G46: 1 | H46: 1 | I46: 1 | J46: 1 | K46: Population | L46: Total human population density (number per km2 land area) | M46: 238.5041551 | N46: people / km2 | O46: 2001 | P46: LN(X+1) | Q46: =LN(M46+1) -> 5.478570766 | R46: US Bureau of Census | S46: This is a proxy measure for pressure on the environment resulting from the number of humans being supported per unit of land. The greater numbers of people increases pressure on the environment for resources, for the attenuation of wastes and physical disturbance of the environment. | T46: Policies that keep human population pressures within sustainable limits. This includes lifestyle choices and minimising the ecological footprint and levels of consumption. General resilience can be built by maintaining and restoring damaged ecosystems, minimising wastes and creating terrestrial and aquatic reserves. | U46: 3 | V46: 3.5 | W46: 4 | X46: 4.5 | Y46: 5 | Z46: 3 | AA46: 5.5 | AB46: 6 | AC46: 3 | AD46: 3 | AE46: 3.5 | AF46: 4 | AG46: 4.5 | AH46: 5 | AI46: 5.5 | AJ46: 6 | AK46: 6 | AL46: Possible
A47: 46 | B47: Human populations | C47: Hazards | D47: 1 | E47: 1 | F47: 1 | G47: 1 | H47: 1 | I47: 1 | J47: 1 | K47: Population Growth | L47: Annual human population growth rate over the last 5 years | M47: 0.5848279708 | N47: % | O47: 1996-2001 | P47: None | Q47: =M47 -> 0.5848279708 | R47: US Bureau of Census | S47: This indicator focuses on the potential for damage relating to expanding human populations. It signals increasing rates of habitat damage, exploitation of naturalresources and disposal of wastes that will need to be assimilated into the environment. It also captures the risk of infrastructure not being able to keep up with demand for issues such as waste treatment. | T47: Policies that keep human population pressures within sustainable limits. This includes lifestyle choices and minimising the ecological footprint and levels of consumption. General resilience can be built by maintaining and restoring damaged ecosystems, minimising wastes and creating terrestrial and aquatic reserves | U47: 0 | V47: 0 | W47: 0.5 | X47: 1 | Y47: 1.5 | Z47: 0 | AA47: 2 | AB47: 4 | AC47: 0 | AD47: 0 | AE47: 0 | AF47: 0.5 | AG47: 1 | AH47: 1.5 | AI47: 2 | AJ47: 4 | AK47: 4 | AL47: Possible
A48: 47 | B48: Human populations | C48: Hazards | D48: 1 | E48: 1 | F48: 1 | G48: 1 | H48: 1 | I48: 1 | J48: 1 | K48: Tourists | L48: Average annual number of international tourists per km2 land over the past 5 years. | M48: 107.2945522 | N48: people/km2/yr | O48: 1996-2000 | P48: LN(X+1) | Q48: =LN(M48+1) -> 4.68485485 | R48: WTO, Tourist Board | S48: This is a measure for the additional load of all human impacts associated with international visitors and not reported in human population statistics. Tourists place additional pressure on the environment through increasing demands on local resources and through creation of pollution as well as physical disturbances of the environment. It is possible that their environmental burden is greater than that of residents. | T48: Options for ecotourism could be examined. Policies that ensure that capital damage to the environment and wastes are minimised. General resilience can be built by maintaining and restoring forests and other ecosystems and creating terrestrial and aquatic reserves. | U48: 3 | V48: 3.5 | W48: 4 | X48: 4.5 | Y48: 5 | Z48: 3 | AA48: 5.5 | AB48: 5 | AC48: 3 | AD48: 3 | AE48: 3.5 | AF48: 4 | AG48: 4.5 | AH48: 5 | AI48: 5.5 | AJ48: 5 | AK48: 5 | AL48: Possible
A49: 48 | B49: Human populations | C49: Damage | D49: 1 | E49: 1 | F49: 1 | G49: 1 | H49: 1 | I49: 1 | J49: 1 | K49: Coastal Settlements | L49: Density of people living in coastal settlements (i.e. with a city centre within 100km of any maritime or lake* coast). | M49: 238.5041551 | N49: people/km2 | O49: 1995 | P49: LN(X+1) | Q49: =LN(M49+1) -> 5.478570766 | R49: WRI 2000-2001 | S49: This indicator captures the focus of stress on coastal ecosystems, often the most productive living areas in a country, through pollution, eutrophication, resource depletion and habitat degradation. | T49: Policies that manage ecosystems and their use at the interface between land and sea, lakes or rivers. Emphasis should be on fragile habitats such as swamps, mangroves, estuaries, lakes. General resilience can be built by maintaining and restoring damaged ecosystems and creating reserves. | U49: 3 | V49: 3.5 | W49: 4 | X49: 4.5 | Y49: 5 | Z49: 3 | AA49: 5.5 | AB49: 7 | AC49: 3 | AD49: 3 | AE49: 3.5 | AF49: 4 | AG49: 4.5 | AH49: 5 | AI49: 5.5 | AJ49: 7 | AK49: 7 | AL49: Possible
A50: 49 | B50: Human populations | C50: Hazards | D50: 1 | E50: 1 | F50: 1 | G50: 1 | H50: 1 | I50: 1 | J50: 1 | K50: Environmental Agreements | L50: Number of environmental treaties in force in a country | M50: 68 | N50: treaties | O50: 2003 | P50: -X | Q50: =-M50 -> -68 | R50: SEDAC / CIESIN | S50: This indicator captures the level of management and stewardship of the environment in a country. Two aspects of legislation are needed: the message to the public that environmental management is essential, and the effectiveness of controls. The benefits of good management would be especially important if there are many endangered species, sensitive ecosystems, and interactions with on-going human impacts. | T50: Becoming party to agreements that help the country to address its most significant issues as identified by the EVI. Use assistance in the form of information, technology, and others to formulate and implement national-level actions to address environmental concerns. | U50: -60 | V50: -50 | W50: -40 | X50: -30 | Y50: -20 | Z50: -60 | AA50: -10 | AB50: 1 | AC50: -60 | AD50: -60 | AE50: -50 | AF50: -40 | AG50: -30 | AH50: -20 | AI50: -10 | AJ50: 1 | AK50: 1 | AL50: Possible
A51: 50 | B51: Human populations | C51: Damage | D51: 1 | E51: 1 | F51: 1 | G51: 1 | H51: 1 | I51: 1 | J51: 1 | K51: Conflicts | L51: Average number of conflict years per decade within the country over the past 50 years. | M51: 0 | N51: Average conflict years / decade | O51: 1991-2000 | P51: None | Q51: 0 | R51: EMDAT | S51: This indicator captures the risk to terrestrial, aquatic ecosystems and ground waters related to human conflicts. Conflicts can result in habitat disturbance and degradation, pollution and a complete breakdown in environmental management. The time frame used reflects the long term nature of conflict-related damage to the environmental support system. | T51: Policies that reduce and clean up pollution and war-related hazards, rehabilitate damaged areas and ensure people in affected areas are given relief so that they do not need to make inefficient emergency use of resources and services. | U51: 0 | V51: 1 | W51: 2 | X51: 3 | Y51: 4 | Z51: 0 | AA51: 5 | AB51: 1 | AC51: 0 | AD51: 0 | AE51: 1 | AF51: 2 | AG51: 3 | AH51: 4 | AI51: 5 | AJ51: 1 | AK51: 1 | AL51: Possible
A52: 52 | B52: Weather & Climate | C52: Hazards | D52: 1 | E52: 1 | G52: 1 | I52: 1 | J52: 1 | K52: RainClemencia | L52: Total yearly rainfall at Clemencia. | M52: -2010 | N52: mm | O52: 2003-2017 | P52: None | Q52: -2010 | R52: MMS | U52: -2755.31 | V52: -2609.806 | W52: -2464.302 | X52: -2318.798 | Y52: -2173.294 | Z52: -2755.31 | AA52: -2027.79 | AB52: 7 | AC52: -2400 | AD52: -2400 | AE52: -2320 | AF52: -2240 | AG52: -2160 | AH52: -2080 | AI52: -2000 | AJ52: 6 | AK52: 3 | AL52: Likely
D89: =SUM(D1:D88) -> 20 | E89: =SUM(E1:E88) -> 24 | F89: 24 | G89: 30 | H89: 24 | I89: 22 | J89: 38

Sheet Sheet1
